Cogmind - Beta 15 @@@ ROGUE MODE // 2025.05.20 @ 11:36:07 Player: Dosh Result: Destroyed by V573-y with Enhanced Force Lance Performance ------------- Evolutions (7) 3500 Regions Visited (29) 5800 Robots Destroyed (385) 1925 Value Destroyed (23114) 23114 Prototype IDs (57) 1140 Alien Tech Used (1) 200 Bonus (20675) 20675 TOTAL SCORE: 56354 Bonus ------- High Alert Combat Kills 1073 Follower Combat Kills 8943 Entered Garrisons 1600 Used RIF Installer 6000 Network Hubs Disabled 400 Aligned with FarCom 300 Built Enhanced Grunts 300 Met R17 at Cetus 500 Met R17 at Research 2000 Friendly Fire -441 Cogmind --------- Core Integrity 0/1300 Matter 244/300 Energy 83/100 System Corruption 17% Temperature Cool (0) Movement Core (50) Location -3/Protoforge Parts ------- > --- POWER (2) -------- (None) > --- PROPULSION (6) --- (None) > --- UTILITY (11) ----- Relay Coupler [NC] (4) Relay Coupler [Proto] (2) > --- WEAPON (2) ------- (None) > --- INVENTORY (5) ---- Advanced Cryofiber Web Experimental Heat Sink Relay Coupler [Hunter] (12) Compact HERF Cannon Enhanced Nova Cannon Peak State ------------ > --- POWER ------------ Particle Reactor Quantum Reactor > --- PROPULSION ------- Improved Heavy Siege Treads Biometal Heavy Treads Advanced Heavy Siege Treads > --- UTILITY ---------- Cargo Storage Unit Experimental Targeting Computer Quantum Capacitor Advanced Force Field Relay Coupler [Proto] Relay Coupler [Proto] Relay Coupler [Proto] Relay Coupler [Proto] Relay Coupler [Proto] > --- WEAPON ----------- Enhanced Nova Cannon Advanced Remote Datajack > --- INVENTORY -------- Quantum Reactor Improved Heavy Siege Treads Advanced Cooling System Advanced Cooling System Transmission Jammer Centrium Medium Armor Plating Graphene Brace Experimental EM Shield Advanced Remote Force Field Relay Coupler [NC] Relay Coupler [NC] Relay Coupler [Swarmer] Relay Coupler [Grunt] Relay Coupler [Grunt] Relay Coupler [Sentry] Relay Coupler [Hunter] Relay Coupler [Hunter] Relay Coupler [Behemoth] High-powered Transdimensional Reconstructor Subatomic Replicator Compact HERF Cannon Enhanced Nova Cannon Heavy Missile Launcher Improved Datajack Advanced Remote Datajack [Rating: 177] Favorites ----------- Power Quantum Reactor Engine Reinforced Deuterium Engine Power Core Nuclear Core Reactor Quantum Reactor Propulsion Centrium Heavy Treads Treads Centrium Heavy Treads Leg Multireflex Exoskeleton Wheel Compact Wheel Utility Relay Coupler [Grunt] Device Advanced Cooling System Storage Huge Storage Unit Processor Experimental Targeting Computer Hackware Relay Coupler [Grunt] Protection Centrium Medium Armor Plating Artifact Phase Redirector Weapon Enhanced Nova Cannon Energy Gun EM Shotgun Energy Cannon Enhanced Nova Cannon Ballistic Gun Enhanced Autogun Launcher Missile Launcher Special Weapon Advanced Remote Datajack Slashing Weapon Katana Special Melee Weapon Improved Datajack Build | -11 -10 -10 -10 -9 -8 -8 -8 -8 -7 -7 -7 -7 -6 -6 -6 -6 -6 -6 -6 -6 -5 -5 -4 -4 -3 -3 -3 -3 -3 ------- Run | Yrd Mat Min Exi Min Mat Gar Mat Gar Fac Was Fac Gar Fac Gar Fac Ext Cet Arc Hub Gar Fac Gar Fac Gar Res Gar Res Qua Frg Slots Evolved 14 | . . . . . 4 . . . 2 . . . 2 . . . . . . . 2 . 2 . 2 . . . . Power 1 | . . . . . . . . . . . . . 1 . . . . . . . . . . . . . . . . Propulsion 4 | . . . . . 1 . . . 1 . . . . . . . . . . . 1 . . . 1 . . . . Utility 9 | . . . . . 3 . . . 1 . . . 1 . . . . . . . 1 . 2 . 1 . . . . Weapon . | . . . . . . . . . . . . . . . . . . . . . . . . . . . . . . Parts Attached 224 | 6 6 4 1 3 20 . 12 8 5 4 . 9 10 10 6 2 12 4 8 3 12 18 4 4 11 9 14 11 8 Power 27 | 1 . 2 . . 2 . 1 . 1 2 . 1 1 1 . 2 1 1 . 2 1 2 . . 2 2 1 1 . Engine 7 | 1 . 1 . . 1 . 1 . 1 . . . . . . 1 . . . 1 . . . . . . . . . Core 4 | . . 1 . . 1 . . . . . . . . . . . . . . . 1 . . . . . 1 . . Reactor 16 | . . . . . . . . . . 2 . 1 1 1 . 1 1 1 . 1 . 2 . . 2 2 . 1 . Propulsion 33 | 2 1 . . 1 6 . 1 1 1 2 . 3 . 2 1 . 2 . . . 1 4 . . 1 2 1 . 1 Treads 31 | 2 1 . . 1 5 . 1 1 1 2 . 3 . 2 . . 2 . . . 1 4 . . 1 2 1 . 1 Leg 1 | . . . . . . . . . . . . . . . 1 . . . . . . . . . . . . . . Wheel 1 | . . . . . 1 . . . . . . . . . . . . . . . . . . . . . . . . Hover . | . . . . . . . . . . . . . . . . . . . . . . . . . . . . . . Flight . | . . . . . . . . . . . . . . . . . . . . . . . . . . . . . . Utility 119 | 1 2 1 1 1 6 . 6 7 1 . . 5 7 4 4 . 6 2 7 1 7 9 3 3 7 3 10 9 6 Device 31 | . . . . . 2 . 2 1 1 . . 1 . 2 1 . 2 2 2 . 4 . . 1 2 . 7 . 1 Storage 5 | 1 1 . 1 . . . . 1 . . . . . . . . . . . . . . . 1 . . . . . Processor 5 | . . . . . . . . . . . . . . . 2 . . . 1 . . 1 . . 1 . . . . Hackware 58 | . . . . . . . 1 3 . . . 3 5 2 . . 2 . 3 1 3 8 3 1 4 3 3 8 5 Protection 19 | . 1 1 . 1 4 . 3 2 . . . 1 2 . 1 . 2 . 1 . . . . . . . . . . Artifact 1 | . . . . . . . . . . . . . . . . . . . . . . . . . . . . 1 . Weapon 45 | 2 3 1 . 1 6 . 4 . 2 . . . 2 3 1 . 3 1 1 . 3 3 1 1 1 2 2 1 1 Energy Gun 4 | . 2 1 . . . . . . . . . . . 1 . . . . . . . . . . . . . . . Energy Cannon 10 | . . . . . . . . . . . . . . . 1 . . . 1 . 2 2 1 . 1 2 . . . Ballistic Gun 17 | 2 1 . . . 4 . 2 . 2 . . . 1 1 . . 3 1 . . . . . . . . . . . Ballistic Cannon . | . . . . . . . . . . . . . . . . . . . . . . . . . . . . . . Launcher 4 | . . . . 1 1 . 1 . . . . . . . . . . . . . . . . . . . 1 . . Special Weapon 8 | . . . . . . . 1 . . . . . 1 1 . . . . . . 1 1 . 1 . . 1 1 . Impact Weapon . | . . . . . . . . . . . . . . . . . . . . . . . . . . . . . . Slashing Weapon 1 | . . . . . 1 . . . . . . . . . . . . . . . . . . . . . . . . Piercing Weapon . | . . . . . . . . . . . . . . . . . . . . . . . . . . . . . . Special Melee Weapon 1 | . . . . . . . . . . . . . . . . . . . . . . . . . . . . . 1 Unidentified Prototypes 12 | . . . . . 2 . 1 . 1 . . . . . . . 3 . 1 . 2 . . . . . 1 1 . Corrupted Parts 2 | . . . . . . . . . . . . . . . . . 1 1 . . . . . . . . . . . System Corruption 14 | . . . . . . . . . . . . . . . . . 8 6 . . . . . . . . . . . Parts Lost 40 | . 2 3 . 1 . . . 5 . . . . . 2 . 3 . . 1 . 4 1 . 1 1 . . 1 15 Power 7 | . . 1 . . . . . . . . . . . . . 2 . . . . 1 . . . 1 . . . 2 Propulsion 8 | . 1 . . 1 . . . 2 . . . . . . . . . . . . . . . . . . . . 4 Utility 17 | . . 1 . . . . . 3 . . . . . 2 . . . . 1 . 1 1 . 1 . . . 1 6 Weapon 8 | . 1 1 . . . . . . . . . . . . . 1 . . . . 2 . . . . . . . 3 Highest Loss Streak 14 | . 1 1 . 1 . . . 2 . . . . . 1 . 1 . . 1 . 1 1 . 1 1 . . 1 14 To Critical Strikes 1 | . 1 . . . . . . . . . . . . . . . . . . . . . . . . . . . . Average Backups 20 | . 7 9 11 14 16 18 18 19 23 23 22 21 21 21 22 21 23 23 21 23 22 23 21 24 26 27 28 27 24 Power . | . . . 1 1 1 1 1 1 1 1 1 1 . . 1 . 1 1 1 1 1 1 1 1 . 1 1 1 . Propulsion 1 | . . 1 1 1 2 4 4 3 3 2 2 2 2 1 . 1 1 1 1 1 1 1 1 1 2 1 1 1 . Utility 13 | . 3 3 4 4 4 6 6 10 13 13 13 12 13 13 16 16 17 16 14 15 16 18 17 18 18 20 22 20 15 Weapon 3 | . 3 4 4 5 6 6 5 4 6 5 5 4 5 4 3 2 3 4 4 4 3 2 1 1 2 2 2 3 3 Tool/Special . | . . . . . . . . . . . . . . . . . . . . . . . . . . . . . . Unused Backups 55 | . . . . . 5 . 7 2 2 4 . 3 . 3 . 1 3 1 . 2 3 2 . . . 6 . 1 10 Power 7 | . . . . . 1 . 1 . 1 1 . . . . . 1 1 1 . . . . . . . . . . . Propulsion 10 | . . . . . 2 . 2 . . 2 . 1 . 2 . . . . . . . . . . . 1 . . . Utility 27 | . . . . . 1 . 1 2 . 1 . 2 . 1 . . 1 . . 2 1 2 . . . 5 . . 8 Weapon 7 | . . . . . 1 . 3 . 1 . . . . . . . 1 . . . 1 . . . . . . . . Tool/Special 4 | . . . . . . . . . . . . . . . . . . . . . 1 . . . . . . 1 2 Average Slot Usage (%) 88 | . 94 98 100 99 97 100 99 99 99 92 84 83 85 84 86 86 85 85 85 85 84 86 87 83 79 79 76 75 75 Engine 2 | . 14 5 . . 3 . 1 9 7 2 . . . . . 1 4 . . 4 5 4 . . . . . . . Core 1 | . . 7 14 14 5 9 7 . . . . . . . . . . . . . . . . . . . . . . Reactor 6 | . . . . . . . . . . 4 7 7 13 12 13 10 7 13 13 7 5 6 10 10 9 9 9 9 8 Treads 18 | . 24 28 28 27 26 27 27 27 30 22 15 15 13 13 13 13 13 13 13 13 16 17 15 15 13 14 14 13 13 Device 9 | . . . . . 7 18 11 9 14 15 15 12 12 5 10 7 6 9 5 6 8 7 14 19 12 17 19 13 7 Storage 7 | . 14 14 14 14 9 9 9 9 7 7 7 7 6 6 6 6 6 6 6 6 5 5 5 5 4 4 4 4 3 Processor 2 | . . . . . . . . . . . . . . . 7 6 6 6 . 6 3 2 5 5 4 4 4 4 3 Hackware 13 | . . . . . . . 6 10 15 15 15 9 17 23 14 13 12 13 19 20 20 24 21 16 21 16 11 18 24 Protection 9 | . 13 14 14 14 26 18 18 16 7 7 7 14 8 8 6 11 12 9 12 6 5 4 3 . 2 2 2 . . Energy Gun 2 | . . 28 28 28 1 . . . . . . . . . . . . . . . . . . . . . . . . Energy Cannon 2 | . . . . . . . . . . . . . . . 5 6 1 . . . 2 6 6 5 5 7 5 4 3 Ballistic Gun 7 | . 27 . . . 14 17 17 10 6 12 11 7 8 9 4 5 11 8 11 6 1 . . . . . . . . Special Weapon 1 | . . . . . . . . 2 4 1 . . 3 1 2 . . 4 . 5 4 3 3 4 2 1 3 4 3 Peak Build Rating 177 | 6 11 13 16 17 35 34 39 43 50 72 72 76 89 102 103 101 118 116 123 122 121 124 139 141 163 164 170 177 177 Average Rating 89 | 4 8 11 15 16 29 33 36 39 46 60 71 72 86 95 98 94 103 114 114 116 114 113 134 136 152 157 162 157 163 On Entrance 82 | . 6 11 13 16 17 33 34 39 39 50 72 70 76 82 100 100 91 113 114 122 115 113 124 138 138 152 158 156 177 Naked Turns . | . . . . . . . . . . . . . . . . . . . . . . . . . . . . . . Heaviest Build 237 | 12 24 26 56 58 75 64 67 106 111 117 117 138 146 157 152 158 160 161 165 139 156 156 172 226 233 233 237 227 219 Greatest Support 235 | 40 40 40 40 40 69 68 68 67 85 140 140 150 150 150 135 135 160 160 160 160 183 190 183 183 235 235 235 230 230 Greatest Overweight (x) 4 | . 1 . 1 1 4 . . 1 1 1 . . . 1 1 1 1 1 1 . . . . 1 . . 1 . 2 Average Overweight (x) . | . . . . 1 . . . . 1 . . . . . 1 1 . . . . . . . . . . . . . Largest Inventory Capacity 30 | 8 10 10 20 20 20 20 20 25 25 25 25 25 25 25 25 25 25 25 25 25 25 25 25 30 30 30 30 30 30 Average Capacity 23 | 6 9 10 17 20 20 20 20 22 25 25 25 25 25 25 25 25 25 25 25 25 25 25 25 28 30 30 30 30 29 Most Carried 30 | . 10 10 13 20 20 20 20 25 25 25 25 25 25 25 25 25 25 25 25 25 25 25 24 30 30 30 30 30 28 Average Carried 22 | . 7 9 12 16 19 19 19 20 24 24 25 24 24 23 24 23 24 24 22 25 23 24 22 27 29 29 29 28 25 Final Capacity 30 | 8 10 10 20 20 20 20 20 25 25 25 25 25 25 25 25 25 25 25 25 25 25 25 25 30 30 30 30 30 5 Final Carried 30 | . 9 10 13 20 20 20 20 25 25 25 25 25 24 25 24 25 24 24 25 25 24 25 23 29 30 30 29 26 5 Class Distribution -------------------- 63% | Botlord-Mutant 25% | Mutant 10% | Bothacker-Mutant Dominant Class ---------------- Mutant | -10/Materials Mutant | -10/Mines Mutant | -10/Exiles Mutant | -9/Mines Mutant | -8/Materials Mutant | -8/Garrison Mutant | -8/Materials Bothacker-Mutant | -8/Garrison Bothacker-Mutant | -7/Factory Bothacker-Mutant | -7/Waste Bothacker-Mutant | -7/Factory Bothacker-Mutant | -7/Garrison Botlord-Mutant | -6/Factory Botlord-Mutant | -6/Garrison Botlord-Mutant | -6/Factory Botlord-Mutant | -6/Extension Botlord-Mutant | -6/Cetus Botlord-Mutant | -6/Archives Botlord-Mutant | -6/Hub_04(d) Botlord-Mutant | -6/Garrison Botlord-Mutant | -5/Factory Botlord-Mutant | -5/Garrison Botlord-Mutant | -4/Factory Botlord-Mutant | -4/Garrison Botlord-Mutant | -3/Research Botlord-Mutant | -3/Garrison Botlord-Mutant | -3/Research Botlord-Mutant | -3/Quarantine Botlord-Mutant | -3/Protoforge Resources | -11 -10 -10 -10 -9 -8 -8 -8 -8 -7 -7 -7 -7 -6 -6 -6 -6 -6 -6 -6 -6 -5 -5 -4 -4 -3 -3 -3 -3 -3 ----------- Run | Yrd Mat Min Exi Min Mat Gar Mat Gar Fac Was Fac Gar Fac Gar Fac Ext Cet Arc Hub Gar Fac Gar Fac Gar Res Gar Res Qua Frg Matter Collected 11454 | 201 522 50 . 78 539 288 1050 1209 126 245 20 180 296 951 282 367 161 206 669 521 246 696 208 175 294 304 323 648 599 Remotely . | . . . . . . . . . . . . . . . . . . . . . . . . . . . . . . Salvage Created 19829 | . 705 630 . 110 678 391 1751 1173 42 1078 . 794 140 1545 507 760 311 184 1353 582 295 442 347 406 894 1085 872 1734 1020 Parts 971 | . 57 38 . 9 53 20 97 65 2 20 . 29 14 80 24 23 11 15 48 30 8 21 18 15 26 54 46 97 51 Haulers Intercepted 8 | . 2 . . . . . 6 . . . . . . . . . . . . . . . . . . . . . . Recyclers Shooed 8 | . 2 . . 1 . . 2 . . . . . . . . 1 . . . . . . 1 . . . 1 . . Parts Field Recycled . | . . . . . . . . . . . . . . . . . . . . . . . . . . . . . . Retrieved Matter . | . . . . . . . . . . . . . . . . . . . . . . . . . . . . . . Parts Self-Destructed . | . . . . . . . . . . . . . . . . . . . . . . . . . . . . . . Prevented . | . . . . . . . . . . . . . . . . . . . . . . . . . . . . . . Kills | -11 -10 -10 -10 -9 -8 -8 -8 -8 -7 -7 -7 -7 -6 -6 -6 -6 -6 -6 -6 -6 -5 -5 -4 -4 -3 -3 -3 -3 -3 ------- Run | Yrd Mat Min Exi Min Mat Gar Mat Gar Fac Was Fac Gar Fac Gar Fac Ext Cet Arc Hub Gar Fac Gar Fac Gar Res Gar Res Qua Frg Combat Hostiles Destroyed 306 | . 19 16 . 3 16 8 28 29 1 3 . 1 3 31 9 11 4 1 12 12 4 9 5 4 9 18 13 25 12 Melee 1 | . . . . . . . . . . . . . . . . . . . . 1 . . . . . . . . . Guns 174 | . 19 12 . 1 12 8 26 23 1 3 . 1 3 31 4 4 2 1 12 11 . . . . . . . . . Cannons 82 | . . . . . . . . . . . . . . . 4 5 . . . . 4 7 5 3 6 14 4 22 8 AOE 23 | . . 4 . 2 4 . 2 6 . . . . . . . . . . . . . . . . . . 4 1 . Classes Destroyed 25 | . 8 . . 1 1 1 1 4 . 2 . . 1 4 . . . . . . . . . 1 . . . 1 . Worker 16 | . 1 1 . . 1 . 3 . . . . . . . . . . . 8 . . . . . . . . 1 1 Builder 9 | . 1 . . 1 1 . . . . . . . . . 2 . . . . . . . . . . . 2 . 2 Tunneler 6 | . 1 1 . . . . 2 . . . . . . . . . . . . . . . . . 1 . 1 . . Hauler 8 | . 2 . . . . . 6 . . . . . . . . . . . . . . . . . . . . . . Recycler 3 | . . . . . . . 1 . . . . . . . . . . . 1 . . . . . 1 . . . . Mechanic 2 | . . . . . . . . 1 . . . . . . . . . . . . 1 . . . . . . . . Operator 8 | . 2 . . . 1 . . . . . . . . . . 1 . 3 . . . . . . . . 1 . . Watcher 17 | . 2 . . . 1 . 5 . . . . . . . 1 1 . . 1 . 1 1 1 . . 1 1 1 . Swarmer 54 | . 12 6 . . 4 . 6 4 . . . . . 2 3 . . . . 1 . 1 . . . 6 4 5 . Cutter 8 | . . . . . . . . 3 . . . . . 4 . . . . . . . 1 . . . . . . . Saboteur 5 | . . . . . . . . . . . . . . 3 . . . . . 2 . . . . . . . . . Grunt 98 | . 7 10 . 2 7 5 18 10 . . . . . 9 1 2 . . 4 6 . 2 2 . 3 4 . 6 . Brawler 6 | . . . . . . . . . . . . . . 2 1 1 . . . 1 . . . . . . . . 1 Duelist 7 | . . . . 1 1 . . . . . . . 1 2 . . . . . . 1 . . . . 1 . . . Researcher 2 | . . . . . . . . . . . . . . . . . . . . . . . . . . . . 2 . Sentry 38 | . . . . . 4 1 4 6 . . . . . 4 2 8 . 1 4 . . . . 1 1 . . . 2 Demolisher 2 | . . . . . . . . . . . . . . 1 . . . . . . 1 . . . . . . . . Specialist 6 | . . . . . . . . 3 . . . . . . . . . . . . . . . . . . . . 3 Hunter 18 | . . . . . . . . 1 1 . . . . . . . . . . . . 2 1 . 4 2 3 4 . Programmer 46 | . . . . . . 2 . 2 . . . 1 1 1 2 . . . 4 2 2 3 2 1 . 4 5 11 3 Heavy 1 | . . . . . . . . . . . . . 1 . . . . . . . . . . . . . . . . Behemoth 6 | . . . . . . . . . . . . . . 1 . . . . 1 . . . . 1 1 1 1 . . Compactor 3 | . . . . . . . . . . 3 . . . . . . . . . . . . . . . . . . . Cetus Guard 4 | . . . . . . . . . . . . . . . . . 4 . . . . . . . . . . . . Lightning 3 | . . . . . . . . . . . . . . . . . . . 3 . . . . . . . . . . Hotshot 3 | . . . . . . . . . . . . . . . . . . . . . . . . . . . . . 3 Executioner 2 | . . . . . . . . . . . . . . 2 . . . . . . . . . . . . . . . Assembled 1 | . . . . . . . . . . . . . . . . . . . . . . . . 1 . . . . . Butcher 2 | . . . . . . . . . . . . . . . . 1 1 . . . . . . . . . . . . Martyr 2 | . . . . . . . . . . 2 . . . . . . . . . . . . . . . . . . . Best Kill Streak 10 | . 7 5 . 4 6 2 4 5 1 1 . 1 1 4 3 2 3 3 10 10 3 3 2 2 3 5 4 5 3 Combat Bots Only 10 | . 6 5 . 3 5 2 4 5 1 1 . 1 1 4 3 2 3 1 2 10 2 3 2 2 3 5 4 5 3 Max Kills in Single Turn 11 | . 2 2 . 2 5 1 1 2 1 1 . 1 1 2 2 1 2 2 11 2 1 1 1 1 1 1 3 1 1 Gunslinging 1 | . 1 . . . . . . . . . . . . 1 . . . . . . . . . . . . . . . Exploded 4 | . . 2 . 1 4 . 1 2 . . . . . . . . . . . . . . . . . . 3 1 . Melee 1 | . . . . . . . . . . . . . . . . . . . . 1 . . . . . . . . . Uniques/NPCs Destroyed . | . . . . . . . . . . . . . . . . . . . . . . . . . . . . . . Combat | -11 -10 -10 -10 -9 -8 -8 -8 -8 -7 -7 -7 -7 -6 -6 -6 -6 -6 -6 -6 -6 -5 -5 -4 -4 -3 -3 -3 -3 -3 -------- Run | Yrd Mat Min Exi Min Mat Gar Mat Gar Fac Was Fac Gar Fac Gar Fac Ext Cet Arc Hub Gar Fac Gar Fac Gar Res Gar Res Qua Frg Hostile Shots Fired 2519 | . 75 53 . 3 71 29 95 171 4 . . 18 41 261 100 302 4 7 145 39 51 144 27 28 71 68 109 96 507 Missed 839 | . 16 14 . 2 19 12 22 44 2 . . 6 17 90 41 114 1 4 52 10 17 40 7 8 19 23 20 26 213 Hits 1680 | . 59 39 . 1 52 17 73 127 2 . . 12 24 171 59 188 3 3 93 29 34 104 20 20 52 45 89 70 294 Melee 29 | . . . . 1 . . . . . . . . . 8 . . . . . 3 . 2 . . . 2 . . 13 Projectile 1651 | . 59 39 . . 52 17 73 127 2 . . 12 24 163 59 188 3 3 93 26 34 102 20 20 52 43 89 70 281 AOE 7 | . . . . . . . . . . . . 2 . 3 . . . . . . 2 . . . . . . . . Critical Strikes 87 | . 1 2 . 1 6 2 1 5 . . . . . 5 2 1 . . 6 1 5 7 . 1 4 3 11 3 20 Actively Blocked 18 | . . . . . . . . . . . . . . . . . . . . . . . . . 1 . 1 . 16 Part Disruptions 3 | . . . . . . . . . . . . 1 . . . . . . . . . . . . . . . . 2 Damage Taken 21166 | . 626 459 . 66 719 187 858 1788 31 . 17 146 157 1640 295 1049 85 62 1735 479 665 940 260 284 790 621 1565 683 4959 Core 2552 | . 18 58 . . 50 46 67 151 . . . 11 32 216 5 63 34 . 271 107 59 38 10 . 50 12 104 42 1108 Absorbed by Shields 5050 | . . . . . 31 70 102 116 9 . 5 42 41 848 327 562 . . . . 114 465 275 294 298 422 370 338 321 Reduced by Siege Mode 416 | . . . . . . . . . . . . . . 24 . . . . . . . . . . . 59 333 . . Ignored by Resistances 2549 | . . . . . . . 118 38 . . . 13 30 427 . 153 16 17 104 . 77 726 . . . 109 320 401 . Regen/Repaired (Parts) 3714 | . 84 . . . . . 493 256 . . . 5 . . 198 . . . . . 795 . 366 . 108 31 . 408 970 Core Remaining (%) 73 | 100 . . . 69 . . . 42 . . . 98 . . . . . . . 14 . 90 . 99 . . . . . Volleys Fired 1455 | . 74 32 . 11 47 25 118 101 7 31 . 12 26 82 37 56 12 15 65 62 40 77 36 30 39 74 96 127 123 Largest 2 | . 2 2 . 2 2 2 2 2 2 2 . 2 2 2 2 2 2 2 2 2 2 2 2 2 2 2 2 1 1 Hottest 240 | . 40 90 . 90 90 48 61 61 56 56 . 56 56 66 128 128 128 70 90 70 188 240 240 240 240 240 240 120 120 Shots Fired 2277 | . 148 62 . 19 88 50 231 184 9 42 . 15 39 231 65 105 21 18 119 75 47 114 42 38 50 111 98 127 129 Gun 1351 | . 148 62 . 16 87 50 225 168 7 35 . 15 26 225 28 56 17 18 109 54 5 . . . . . . . . Cannon 703 | . . . . . . . . . . . . . . . 31 49 4 . 1 . 32 93 22 34 37 99 84 106 111 Launcher 16 | . . . . 3 1 . 4 6 . . . . . . . . . . . . . . . . . . 2 . . Special 207 | . . . . . . . 2 10 2 7 . . 13 6 6 . . . 9 21 10 21 20 4 13 12 12 21 18 Kinetic 1191 | . 148 . . . 81 50 225 168 7 35 . 15 26 149 28 56 17 18 109 54 5 . . . . . . . . Thermal 706 | . . . . . . . . . . . . . . 76 31 49 4 . 1 . 32 93 22 34 24 83 73 92 92 Explosive 16 | . . . . 3 1 . 4 6 . . . . . . . . . . . . . . . . . . 2 . . Electromagnetic 157 | . . 62 . 16 6 . . . . . . . . . . . . . . . . . . . 13 16 11 14 19 Robot Hit Streak 35 | . 7 13 . 6 19 14 19 14 20 23 . 4 7 35 6 14 6 6 18 12 14 9 17 20 23 22 20 10 11 Robot Miss Streak 7 | . 7 6 . 1 4 2 5 5 . 1 . 2 2 4 3 3 4 2 5 2 3 3 2 2 3 2 3 3 4 Penetration Max 2 | . . . . . . . . . . . . . . 1 . 1 2 1 1 1 . . . . . . . . . Secondary Targets 11 | . 3 . . . 1 . 2 1 . . . . . 2 . . . . 2 . . . . . . . . . . Max Gunslinging Chain 1 | . 1 . . . 1 . 1 1 . . . . . 1 . . . . 1 . . . . . . . . . . Capacitor 278 | . . . . . . . . . . . . . . . . . . . . . . . . . . . 76 106 96 Autonomous 77 | . . . . . . . . . . . . . . 77 . . . . . . . . . . . . . . . Shots Hit Robots 1538 | . 78 43 . 17 66 34 156 125 8 38 . 35 28 184 35 67 13 12 74 47 33 55 28 24 40 56 67 88 87 Core Hits 604 | . 41 39 . 10 36 16 72 55 1 7 . 15 6 64 17 27 8 7 32 16 8 12 7 8 15 18 17 29 21 Critical Kills 31 | . 2 . . . . 1 . . . . . . . . 1 2 2 3 3 6 . 2 . 2 1 . 3 2 1 Critical Parts Destroyed 16 | . 1 . . . . . 1 1 . . . . . 2 . . . 2 6 3 . . . . . . . . . Critical Strikes 50 | . 3 . . . . 1 1 1 . . . . . 2 1 3 2 6 9 9 . 2 . 2 1 1 3 2 1 Meltdown 16 | . . . . . . . . . . . . . . . 1 2 2 . . . . 2 . 2 1 . 3 2 1 Destroy 33 | . 3 . . . . 1 1 1 . . . . . 2 . 1 . 6 9 9 . . . . . . . . . Corrupt 1 | . . . . . . . . . . . . . . . . . . . . . . . . . . 1 . . . Melee Attacks 100 | . . . . . 13 . . 18 1 2 3 56 . 3 . . . . . . . . . . . . . . 4 Impact . | . . . . . . . . . . . . . . . . . . . . . . . . . . . . . . Slashing 96 | . . . . . 13 . . 18 1 2 3 56 . 3 . . . . . . . . . . . . . . . Piercing . | . . . . . . . . . . . . . . . . . . . . . . . . . . . . . . Sneak Attacks 5 | . . . . . 2 . . . . 2 . . . . . . . . . . . . . . . . . . 1 Combat Hostiles . | . . . . . . . . . . . . . . . . . . . . . . . . . . . . . . Follow-up Attacks . | . . . . . . . . . . . . . . . . . . . . . . . . . . . . . . Damage Inflicted 43620 | . 1103 938 . 427 1317 594 3153 2665 107 793 . 1991 360 4378 970 2221 504 411 3383 1076 865 1537 604 907 1257 2234 3160 3539 3126 Guns 19180 | . 1038 645 . 190 1024 594 2711 2052 107 653 . 188 360 4365 452 1004 373 411 1809 1076 128 . . . . . . . . Cannons 17905 | . . . . . . . . . . . . . . . 515 1150 131 . . . 700 1477 477 907 1247 2234 2649 3313 3105 Explosions 3686 | . . 262 . 222 144 . 323 613 . . . . . . . . . . 1544 . . . . . . . 496 82 . Melee 2067 | . . . . . 124 . . . . 140 . 1803 . . . . . . . . . . . . . . . . . Ramming 782 | . 65 31 . 15 25 . 119 . . . . . . 13 3 67 . . 30 . 37 60 127 . 10 . 15 144 21 Kinetic 16570 | . 1038 . . . 965 594 2711 2052 107 653 . 188 360 2649 452 1004 373 411 1809 1076 128 . . . . . . . . Thermal 17692 | . . 262 . . . . . . . . . . . 1716 515 1150 131 . . . 700 1477 477 907 823 1843 2219 2967 2505 Explosive 1798 | . . . . 222 144 . 323 613 . . . . . . . . . . . . . . . . . . 496 . . Electromagnetic 4711 | . . 645 . 190 59 . . . . . . . . . . . . . 1544 . . . . . 424 391 430 428 600 Impact . | . . . . . . . . . . . . . . . . . . . . . . . . . . . . . . Slashing 2067 | . . . . . 124 . . . . 140 . 1803 . . . . . . . . . . . . . . . . . Piercing . | . . . . . . . . . . . . . . . . . . . . . . . . . . . . . . Highest Corruption 17 | . . . . . . 1 5 9 . . . 1 . . 4 . 8 10 14 15 3 5 3 3 . 3 8 5 17 Average Corruption 4 | . . . . . . 1 1 8 . . . 1 . . 3 . 6 6 11 14 2 4 2 3 . 2 5 2 6 Corruption Purged 26 | . . . . . . . . . . . . . . . 4 . 4 10 . . . . . . . . 8 . . Corruption Blocked . | . . . . . . . . . . . . . . . . . . . . . . . . . . . . . . Effects 364 | . . . . . . 4 23 64 . . . . . . 15 . 3 6 7 45 6 30 17 9 . 12 34 11 78 Message Errors 89 | . . . . . . 2 7 18 . . . . . . 4 . 2 1 3 10 1 9 5 1 . 3 9 3 11 Matter Fused 77 | . . . . . . 1 3 14 . . . . . . 3 . 1 1 . 5 2 6 5 1 . . 10 5 20 Heat Flow Errors 33 | . . . . . . . 2 7 . . . . . . 1 . . 1 1 5 . 1 3 . . 3 2 1 6 Energy Discharges 42 | . . . . . . . 5 5 . . . . . . 1 . . 1 . 8 1 2 1 4 . 4 2 2 6 Parts Rejected 5 | . . . . . . . . 2 . . . . . . . . . . . . . 1 . . . . 1 . 1 Parts Fused 2 | . . . . . . . . . . . . . . . . . . . . 2 . . . . . . . . . Data Loss (minor) 48 | . . . . . . 1 3 7 . . . . . . 1 . . 2 2 6 . 5 1 1 . 1 4 . 14 Data Loss (major) 19 | . . . . . . . 1 2 . . . . . . 1 . . . . 2 . 3 2 1 . 1 2 . 4 Misfires 24 | . . . . . . . 2 4 . . . . . . 2 . . . . 1 2 3 . . . . 2 . 8 Alerts 11 | . . . . . . . . 1 . . . . . . 2 . . . . 3 . . . 1 . . 1 . 3 Misdirections 3 | . . . . . . . . . . . . . . . . . . . . . . . . . . . . . 3 Weapon Failures 11 | . . . . . . . . 4 . . . . . . . . . . 1 3 . . . . . . 1 . 2 Overload Shots . | . . . . . . . . . . . . . . . . . . . . . . . . . . . . . . Overflow Damage 1101 | . 36 5 . . 44 . 38 19 . . . 26 . . . . . . 189 . 52 69 7 38 13 109 269 110 77 Projectiles 689 | . . . . . . . . . . . . . . . . . . . . . 52 69 . 38 13 109 221 110 77 Explosions 330 | . 36 5 . . . . 33 19 . . . . . . . . . . 189 . . . . . . . 48 . . Melee 82 | . . . . . 44 . 5 . . . . 26 . . . . . . . . . . 7 . . . . . . Knockbacks 9 | . 1 . . 1 1 . 3 . . . . . . . . . . . . . . . . . . . 1 1 1 Impact 9 | . 1 . . 1 1 . 3 . . . . . . . . . . . . . . . . . . . 1 1 1 Kinetic . | . . . . . . . . . . . . . . . . . . . . . . . . . . . . . . Secondary . | . . . . . . . . . . . . . . . . . . . . . . . . . . . . . . Self-Inflicted Damage 279 | . 112 . . . . . . 36 . . . . . . . . . . 94 . . . . . . . . 37 . Shots 4 | . 1 . . . . . . 1 . . . . . . . . . . 1 . . . . . . . . 1 . Rammed 63 | . 9 4 . 2 2 . 11 1 . . . . . 1 3 4 . . 3 . 1 5 7 . 1 . 2 5 2 Targets Rammed 70 | . 10 5 . 2 3 . 12 1 . . . . . 1 3 5 . . 3 . 1 5 7 . 1 . 2 7 2 Kicked . | . . . . . . . . . . . . . . . . . . . . . . . . . . . . . . Crushed 7 | . 1 1 . . 1 . 1 . . . . . . . . 1 . . . . . . . . . . . 2 . Highest Temperature 491 | . 8 317 . 225 428 13 194 229 . . . . . 198 491 63 48 100 324 239 108 387 121 . . 192 413 312 422 Average Temperature 85 | . 3 102 . 88 123 13 54 83 . . . . . 42 100 16 25 67 149 104 37 117 47 . . 108 98 74 98 Received Heat Transfer 4620 | . 78 225 . 27 366 68 489 605 . . 7 47 34 301 22 266 18 9 168 138 79 73 30 25 75 40 766 18 646 Effects 12 | . . 1 . . 2 . . . . . . . . . 1 . . . . . . 5 . . . . 3 . . Shutdowns 6 | . . . . . 1 . . . . . . . . . 1 . . . . . . 2 . . . . 2 . . Energy Bleed 2 | . . 1 . . . . . . . . . . . . . . . . . . . 1 . . . . . . . Interference 2 | . . . . . . . . . . . . . . . . . . . . . . 1 . . . . 1 . . Short Circuit 1 | . . . . . 1 . . . . . . . . . . . . . . . . . . . . . . . . Damage (minor) 1 | . . . . . . . . . . . . . . . . . . . . . . 1 . . . . . . . Siege Activations 6 | . . . . . . . . . . . . . . 1 . . . . . . . 1 . . . 1 3 . . Total Turns 171 | . . . . . . . . . . . . . . 21 . . . . . . . 23 . . . 29 98 . . Longest Duration 60 | . . . . . . . . . . . . . . 21 . . . . . . . 23 . . . 29 60 . . Martial Activations . | . . . . . . . . . . . . . . . . . . . . . . . . . . . . . . Shielding Activations . | . . . . . . . . . . . . . . . . . . . . . . . . . . . . . . Robots Disrupted 1 | . . . . . . . . . . . . . . . . . . . . . . . . . . . 1 . . Combat Hostiles 1 | . . . . . . . . . . . . . . . . . . . . . . . . . . . 1 . . Robots Corrupted 16 | . . . . . . . 1 . . . . . . . . . . . 2 . . . . . 2 3 3 2 3 Combat Hostiles 13 | . . . . . . . . . . . . . . . . . . . . . . . . . 2 3 3 2 3 Parts Fried 32 | . . 1 . . . . 2 . . . . . . . . . . . 11 . . . . . 3 3 3 5 4 Impact Corruptions 2 | . . . . . . . 1 . . . . . . . . . . . . . . . 1 . . . . . . Robots Melted 17 | . . . . . . . . . . . . . . . 1 2 2 . . . . 2 . 2 1 1 3 2 1 Combat Hostiles 13 | . . . . . . . . . . . . . . . 1 2 2 . . . . 2 . 1 1 1 2 . 1 Parts Melted 66 | . . 1 . . . . . 1 . . . . 3 4 . 11 1 . . . 1 9 2 2 4 6 11 9 1 Heat Transferred 17577 | . . 300 . . . . . . . . . . . 2107 750 1800 200 . . . 950 1935 370 777 703 1517 1739 2357 2072 Parts Sabotaged 5 | . . . . . . . . . . . . . . . . . . . . 5 . . . . . . . . . Parts Stolen . | . . . . . . . . . . . . . . . . . . . . . . . . . . . . . . Parts Stripped . | . . . . . . . . . . . . . . . . . . . . . . . . . . . . . . Power Chain Reactions 4 | . . 3 . . . . . . . . . . . . . . . . . . . . . . . . . 1 . Alert | -11 -10 -10 -10 -9 -8 -8 -8 -8 -7 -7 -7 -7 -6 -6 -6 -6 -6 -6 -6 -6 -5 -5 -4 -4 -3 -3 -3 -3 -3 ------- Run | Yrd Mat Min Exi Min Mat Gar Mat Gar Fac Was Fac Gar Fac Gar Fac Ext Cet Arc Hub Gar Fac Gar Fac Gar Res Gar Res Qua Frg Maximum Alert Level 4 | . 1 1 . . . 2 1 4 2 . . 3 2 3 2 1 . . 2 3 2 4 2 2 1 3 2 1 2 Low Security (%) 58 | 100 89 99 . 100 100 15 63 15 . 100 100 14 60 18 . 79 100 100 76 . 74 18 72 15 85 17 98 89 53 Level 1 13 | . 10 . . . . 42 36 14 . . . 4 . 15 54 20 . . 17 9 . 10 . 22 14 14 . 10 22 Level 2 17 | . . . . . . 42 . 32 100 . . 36 39 32 45 . . . 6 23 25 9 26 61 . 52 1 . 24 Level 3 9 | . . . . . . . . 35 . . . 44 . 33 . . . . . 66 . 51 . . . 15 . . . Level 4 . | . . . . . . . . 1 . . . . . . . . . . . . . 9 . . . . . . . Level 5 . | . . . . . . . . . . . . . . . . . . . . . . . . . . . . . . High Security . | . . . . . . . . . . . . . . . . . . . . . . . . . . . . . . Max Security . | . . . . . . . . . . . . . . . . . . . . . . . . . . . . . . Peak Influence 1133 | . 256 204 . 70 174 504 349 1133 594 147 76 1067 578 998 583 389 197 137 642 1057 586 1123 589 510 326 812 456 331 672 Initial 594 | . . 91 . . . 100 245 53 594 147 . 37 560 27 523 135 197 10 . 234 554 44 589 65 286 12 456 18 30 Average 258 | . 127 95 . 5 68 353 142 574 489 26 27 664 250 510 399 109 59 69 147 767 160 651 178 367 56 472 49 91 245 Influence Increases 19055 | . 720 420 . 88 861 404 895 1150 64 . 122 1240 375 1221 356 937 255 172 1467 1003 353 1289 584 615 320 950 418 933 1843 Destroy 0b10 Robot/C 8570 | . 380 320 . 60 460 160 560 525 30 . 30 480 195 660 150 405 120 60 540 495 150 555 225 150 180 420 195 465 600 Destroy 0b10 Robot/NC 455 | . 45 15 . 5 25 . 85 . 4 . 8 24 8 . 12 20 8 12 64 . 16 4 4 8 8 4 28 16 32 Destroy Leader 1366 | . 98 70 . 10 112 . 142 48 18 . 10 24 42 24 50 46 . . 160 48 28 40 34 24 32 64 44 66 132 Allied During Kill 3185 | . . . . . 27 . . 18 11 . 48 343 71 42 5 352 117 72 379 169 55 311 180 141 43 138 7 123 533 Trap Triggered on 0b10 40 | . . . . . 40 . . . . . . . . . . . . . . . . . . . . . . . . Successful Hack 622 | . 37 . . . 36 14 26 20 . . . 34 11 . 26 39 . . 22 20 39 8 45 . 14 40 44 79 68 Select Force Hacks 303 | . 60 . . . 60 . 30 . . . 23 . . . 46 . . . 38 . 23 . . . 23 . . . . Disable Machine 711 | . 60 15 . . 45 . 15 . . . . . 36 12 24 12 . 24 144 12 12 . 24 12 12 48 12 60 132 Anti-Garrison Action 2053 | . . . . . . 200 . 416 . . . 265 . 339 . . . . . 114 . 303 . 264 . 152 . . . Destroy Structure 1189 | . 25 . . 13 26 . 7 99 1 . 3 58 . 12 19 39 10 4 120 61 18 68 72 16 8 84 88 76 262 Partial Spotted 12 | . . . . . . . . . . . . . . . . . . . . . . . . . . . . . 12 Lose Combat Pursuer 549 | . 15 . . . 30 30 30 24 . . . 12 12 132 24 24 . . . 84 12 . . . . . . 48 72 Influence Decreases 19050 | . 484 597 59 88 707 54 1317 99 777 420 68 227 1403 262 1078 860 583 197 1132 281 1347 229 1613 199 813 155 1196 912 1893 Entered New Map 4493 | . . 145 59 . . 54 259 29 539 273 . 17 507 12 475 141 156 15 . 101 503 19 534 29 224 5 356 16 25 Time Decay 7868 | . 464 422 . 78 609 . 608 . 238 100 68 . 411 . 583 469 227 182 642 . 356 . 484 . 267 . 451 561 648 Lost Part 381 | . 20 30 . 10 . . . 50 . . . . . 20 . 20 . . 10 . 32 10 . 10 9 . . 10 150 Lost Ally 2333 | . . . . . . . . 20 . 47 . 210 140 230 20 80 200 . 180 180 23 200 71 160 38 150 14 50 320 Purge Threat 3975 | . . . . . 98 . 450 . . . . . 345 . . 150 . . 300 . 433 . 524 . 275 . 375 275 750 Squads Dispatched 94 | . 7 . . . 7 . 5 . . . 2 . 5 . 4 2 . . 21 . 5 . 4 . 8 . 4 11 9 Investigation 21 | . 5 . . . 3 . 2 . . . 1 . . . 2 . . . 4 . 1 . 2 . 1 . . . . Extermination 24 | . . . . . . . . . . . . . 1 . 2 . . . 5 . 2 . 2 . . . 3 5 4 Reinforcement 28 | . 2 . . . . . 3 . . . . . 3 . . 2 . . 2 . 1 . . . 7 . 1 2 5 Assault 1 | . . . . . . . . . . . . . . . . . . . . . 1 . . . . . . . . Garrison 20 | . . . . . 4 . . . . . 1 . 1 . . . . . 10 . . . . . . . . 4 . Intercept . | . . . . . . . . . . . . . . . . . . . . . . . . . . . . . . Searches Triggered . | . . . . . . . . . . . . . . . . . . . . . . . . . . . . . . Construction Impeded 3 | . . . . . . . 1 . . . . . . . . 1 . . . . . . . . . . . . 1 Haulers Reinforced 2 | . . . . . . . . . . . . . . . . . . . . . . . . . 2 . . . . Active Scanning Responses . | . . . . . . . . . . . . . . . . . . . . . . . . . . . . . . Cargo Convoy Interrupts . | . . . . . . . . . . . . . . . . . . . . . . . . . . . . . . Stealth | -11 -10 -10 -10 -9 -8 -8 -8 -8 -7 -7 -7 -7 -6 -6 -6 -6 -6 -6 -6 -6 -5 -5 -4 -4 -3 -3 -3 -3 -3 --------- Run | Yrd Mat Min Exi Min Mat Gar Mat Gar Fac Was Fac Gar Fac Gar Fac Ext Cet Arc Hub Gar Fac Gar Fac Gar Res Gar Res Qua Frg Distress Signals 35 | . 2 . . . 1 . 2 . 2 . . . 1 5 . 1 2 . 4 . 3 . 1 . 6 . 3 1 1 Communications Jammed 13 | . . . . . . . . . . . . . . . . . . . . . . . . . . . . 6 7 Distress Signals 12 | . . . . . . . . . . . . . . . . . . . . . . . . . . . . 5 7 Times Spotted 764 | . 36 15 . 4 23 9 41 41 5 6 1 29 15 61 15 34 10 14 46 38 26 49 30 20 22 26 22 49 77 Peak Tracking Total 10 | . 4 4 . 3 4 3 3 10 2 2 1 6 3 5 3 4 5 1 9 8 6 7 6 4 6 5 4 6 10 Tactical Retreats 35 | . 1 . . . 2 1 2 2 . . . 1 1 8 1 2 . . . 4 1 . . . . . . 4 5 Traps | -11 -10 -10 -10 -9 -8 -8 -8 -8 -7 -7 -7 -7 -6 -6 -6 -6 -6 -6 -6 -6 -5 -5 -4 -4 -3 -3 -3 -3 -3 ------- Run | Yrd Mat Min Exi Min Mat Gar Mat Gar Fac Was Fac Gar Fac Gar Fac Ext Cet Arc Hub Gar Fac Gar Fac Gar Res Gar Res Qua Frg Traps Triggered 35 | . 3 . . . 2 1 2 5 1 . . 1 1 3 2 2 . . . . 1 1 . 4 . 2 . 2 2 Indirectly . | . . . . . . . . . . . . . . . . . . . . . . . . . . . . . . Trap Hack Attempts . | . . . . . . . . . . . . . . . . . . . . . . . . . . . . . . Triggered . | . . . . . . . . . . . . . . . . . . . . . . . . . . . . . . Disarmed . | . . . . . . . . . . . . . . . . . . . . . . . . . . . . . . Reprogrammed 4 | . . . . . . . . . . . . . . . . . . . . . . . . . . . . . 4 Reused 4 | . . . . . 4 . . . . . . . . . . . . . . . . . . . . . . . . Traps Extracted . | . . . . . . . . . . . . . . . . . . . . . . . . . . . . . . Installed 4 | . . . . . 4 . . . . . . . . . . . . . . . . . . . . . . . . Triggered 4 | . . . . . 4 . . . . . . . . . . . . . . . . . . . . . . . . Most Traps Carried 5 | . . . . 5 5 1 . . . . . . . . . . . . . . . . . . . . . . . Machines | -11 -10 -10 -10 -9 -8 -8 -8 -8 -7 -7 -7 -7 -6 -6 -6 -6 -6 -6 -6 -6 -5 -5 -4 -4 -3 -3 -3 -3 -3 ---------- Run | Yrd Mat Min Exi Min Mat Gar Mat Gar Fac Was Fac Gar Fac Gar Fac Ext Cet Arc Hub Gar Fac Gar Fac Gar Res Gar Res Qua Frg Machines Disabled 91 | . 4 1 . . 3 2 1 6 . . . 6 3 4 2 1 . 2 12 4 1 7 2 4 1 8 1 5 11 Max in Single Turn 3 | . 3 1 . . 1 1 1 1 . . . 2 1 1 1 . . 1 2 1 1 1 . 1 1 1 1 1 1 Garrison Access 3 | . . . . . . . . . . . . . 1 . 1 . . . . . . . . . . . 1 . . Garrison Relay 31 | . . . . . . 2 . 4 . . . 5 . 3 . . . . . 3 . 7 . 3 . 4 . . . Phase Generator 1 | . . . . . . . . . . . . . . 1 . . . . . . . . . . . . . . . Network Hub 2 | . . . . . . . . . . . . . . . . . . . 2 . . . . . . . . . . Machines Repaired . | . . . . . . . . . . . . . . . . . . . . . . . . . . . . . . Machines Dismantled . | . . . . . . . . . . . . . . . . . . . . . . . . . . . . . . Machines Sabotaged 1 | . . . . . . . . . . . . . . . . . . . 1 . . . . . . . . . . Overloaded Fab Kills . | . . . . . . . . . . . . . . . . . . . . . . . . . . . . . . Hacking | -11 -10 -10 -10 -9 -8 -8 -8 -8 -7 -7 -7 -7 -6 -6 -6 -6 -6 -6 -6 -6 -5 -5 -4 -4 -3 -3 -3 -3 -3 --------- Run | Yrd Mat Min Exi Min Mat Gar Mat Gar Fac Was Fac Gar Fac Gar Fac Ext Cet Arc Hub Gar Fac Gar Fac Gar Res Gar Res Qua Frg Machines Accessed 132 | . 8 . 2 . 11 2 11 4 1 . 2 4 5 3 8 13 1 . 12 3 5 3 10 . 2 2 6 7 7 Terminals 98 | . 5 . . . 8 2 8 4 1 . 1 4 2 3 4 13 1 . 10 3 3 3 5 . . 2 5 5 6 Fabricators 5 | . . . . . . . . . . . . . 1 . . . . . . . 1 . 3 . . . . . . Repair Stations 8 | . 1 . . . . . 1 . . . . . . . 1 . . . . . . . 1 . 1 . . 2 1 Recycling Units 7 | . 2 . . . 2 . 1 . . . . . . . 2 . . . . . . . . . . . . . . Scanalyzers . | . . . . . . . . . . . . . . . . . . . . . . . . . . . . . . Garrison Access 12 | . . . . . 1 . 1 . . . 1 . 2 . 1 . . . 2 . 1 . 1 . 1 . 1 . . Total Hacks 400 | . 30 . 2 . 29 6 35 11 2 . 5 8 10 5 19 24 3 . 31 14 22 10 48 . 6 10 18 27 25 Successful 199 | . 20 . 2 . 17 1 16 3 . . 3 4 5 1 10 16 . . 18 3 13 2 26 . 6 4 5 12 12 Failed 201 | . 10 . . . 12 5 19 8 2 . 2 4 5 4 9 8 3 . 13 11 9 8 22 . . 6 13 15 13 Catastrophic 41 | . . . . . . 1 4 3 1 . 1 . 1 1 3 . 2 . 2 4 2 2 2 . . 1 4 3 4 Database Lockouts . | . . . . . . . . . . . . . . . . . . . . . . . . . . . . . . Manual 216 | . 18 . 1 . 20 2 23 . . . 3 . 3 . 11 13 2 . 24 10 14 3 21 . 2 7 13 16 10 Terminals 314 | . 26 . . . 26 6 24 11 2 . 1 8 5 5 6 24 3 . 27 14 16 10 32 . . 10 16 19 23 Fabricators 13 | . . . . . . . . . . . . . 1 . . . . . . . 3 . 9 . . . . . . Repair Stations 36 | . 2 . . . . . 6 . . . . . . . 9 . . . . . . . 6 . 3 . . 8 2 Recycling Units 9 | . 2 . . . 2 . 2 . . . . . . . 3 . . . . . . . . . . . . . . Scanalyzers . | . . . . . . . . . . . . . . . . . . . . . . . . . . . . . . Garrison Access 26 | . . . . . 1 . 3 . . . 4 . 4 . 1 . . . 4 . 3 . 1 . 3 . 2 . . Terminal Hacks 87 | . 10 . 2 . 6 1 3 3 . . . 4 1 1 1 10 . . 7 3 5 2 12 . . 4 1 3 8 Record 1 | . . . 1 . . . . . . . . . . . . . . . . . . . . . . . . . . Part Schematic 1 | . 1 . . . . . . . . . . . . . . . . . . . . . . . . . . . . Robot Schematic 2 | . 1 . . . . . . . . . . . . . . 1 . . . . . . . . . . . . . Robot Analysis 4 | . 2 . . . 2 . . . . . . . . . . . . . . . . . . . . . . . . Prototype ID Bank 8 | . 3 . . . 1 . 1 . . . . . 1 . . . . . 1 . . . 1 . . . . . . Open Door 10 | . . . . . . . . . . . . 1 . . 1 8 . . . . . . . . . . . . . Branch Access Points 2 | . . . . . . . . . . . . . . . . . . . . . . . 1 . . . 1 . . Emergency Access Points 5 | . . . . . . . . . . . . 1 . 1 . . . . . 1 . 1 . . . 1 . . . Machine Index 2 | . . . . . . . . . . . . . . . . . . . . . . . . . . . . 1 1 Terminal Index 5 | . 1 . . . 1 . . . . . . . . . . . . . . . 1 . 1 . . . . 1 . Fabricator Index 1 | . . . . . . . . . . . . . . . . . . . . . 1 . . . . . . . . Garrison Index 2 | . . . . . . . . . . . . . . . . . . . 1 . . . 1 . . . . . . Alert Level 2 | . 1 . . . . . . . . . . . . . . . . . . . . . 1 . . . . . . Unreport Threat 15 | . . . . . 1 . 2 . . . . . . . . 1 . . 2 . 2 . 3 . . . . . 4 Locate Traps 4 | . 1 . . . . . . . . . . . . . . . . . 2 . . . . . . . . . 1 Reprogram Traps 1 | . . . . . . . . . . . . . . . . . . . . . . . . . . . . . 1 Patrol Status 1 | . . . . . . . . . . . . . . . . . . . . . . . 1 . . . . . . Recall Investigation 1 | . . . . . . . . . . . . . . . . . . . . . . . 1 . . . . . . Hauler Manifests 2 | . . . . . 1 . . . . . . . . . . . . . . . 1 . . . . . . . . Registered Components 1 | . . . . . . . . . . . . . . . . . . . . . . . 1 . . . . . . Zone Layout 4 | . . . . . . . . . . . . . . . . . . . 1 . . . 1 . . . . 1 1 Garrison Registry 4 | . . . . . . . . 1 . . . 1 . . . . . . . . . 1 . . . 1 . . . Patrol Navigation 5 | . . . . . . 1 . 1 . . . 1 . . . . . . . 1 . . . . . 1 . . . Security Stations 3 | . . . . . . . . 1 . . . . . . . . . . . 1 . . . . . 1 . . . Proto ID Catalog 1 | . . . 1 . . . . . . . . . . . . . . . . . . . . . . . . . . Fabricator Hacks 7 | . . . . . . . . . . . . . . . . . . . . . 2 . 5 . . . . . . Load Schematic 3 | . . . . . . . . . . . . . . . . . . . . . 1 . 2 . . . . . . Build 4 | . . . . . . . . . . . . . . . . . . . . . 1 . 3 . . . . . . Repair Station Hacks 16 | . 2 . . . . . 3 . . . . . . . 3 . . . . . . . 4 . 2 . . 2 . Scan Component 9 | . 1 . . . . . 2 . . . . . . . 2 . . . . . . . 2 . 1 . . 1 . Repair 7 | . 1 . . . . . 1 . . . . . . . 1 . . . . . . . 2 . 1 . . 1 . Recycling Unit Hacks . | . . . . . . . . . . . . . . . . . . . . . . . . . . . . . . Scanalyzer . | . . . . . . . . . . . . . . . . . . . . . . . . . . . . . . Garrison Access Hacks 18 | . . . . . 1 . 1 . . . 2 . 4 . 1 . . . 2 . 2 . 1 . 2 . 2 . . Unlock Access 9 | . . . . . 1 . 1 . . . 1 . 1 . . . . . 2 . 1 . 1 . 1 . . . . Seal Access 3 | . . . . . . . . . . . . . 1 . 1 . . . . . . . . . . . 1 . . Coupler Status 6 | . . . . . . . . . . . 1 . 2 . . . . . . . 1 . . . 1 . 1 . . Unauthorized Hacks 71 | . 8 . . . 10 . 9 . . . 1 . . . 5 6 . . 9 . 4 . 4 . 2 . 2 7 4 Terminals 56 | . 6 . . . 8 . 8 . . . . . . . 2 6 . . 9 . 3 . 3 . . . 2 6 3 Track 12 | . . . . . . . . . . . . . . . 1 1 . . 5 . . . 1 . . . 1 2 1 Assimilate 4 | . . . . . . . 1 . . . . . . . . . . . . . 1 . . . . . . 1 1 Botnet 12 | . 1 . . . 1 . . . . . . . . . 1 4 . . 2 . 1 . . . . . . 2 . Disrupt 1 | . . . . . . . . . . . . . . . . . . . . . . . 1 . . . . . . Operators 5 | . . . . . . . . . . . . . . . . 1 . . . . 1 . 1 . . . . 1 1 Skim 20 | . 5 . . . 7 . 7 . . . . . . . . . . . . . . . . . . . 1 . . Sabotage 2 | . . . . . . . . . . . . . . . . . . . 2 . . . . . . . . . . Fabricators . | . . . . . . . . . . . . . . . . . . . . . . . . . . . . . . Repair Stations 5 | . . . . . . . . . . . . . . . 1 . . . . . . . 1 . 1 . . 1 1 Mechanics 5 | . . . . . . . . . . . . . . . 1 . . . . . . . 1 . 1 . . 1 1 Recycling Units 7 | . 2 . . . 2 . 1 . . . . . . . 2 . . . . . . . . . . . . . . Tunnel 7 | . 2 . . . 2 . 1 . . . . . . . 2 . . . . . . . . . . . . . . Scanalyzers . | . . . . . . . . . . . . . . . . . . . . . . . . . . . . . . Garrison Access 3 | . . . . . . . . . . . 1 . . . . . . . . . 1 . . . 1 . . . . Eject 3 | . . . . . . . . . . . 1 . . . . . . . . . 1 . . . 1 . . . . Data Cores Recovered 5 | . . . . . 2 . . . . . . . . . . . . . 1 . 1 . . . . . 1 . . Used 2 | . . . . . 1 . . . . . . . . . . . . . . . . . . . . . 1 . . Hacking Detections 99 | . 5 . . . 9 2 10 4 1 . 2 4 5 3 4 6 1 . 10 3 2 3 8 . . . 6 6 5 Full Trace Events 13 | . . . . . 1 2 1 3 . . . . . 1 . . . . 2 . . 1 2 . . . . . . Feedback Events 1 | . . . . . . 1 . . . . . . . . . . . . . . . . . . . . . . . Corruption 1 | . . . . . . 1 . . . . . . . . . . . . . . . . . . . . . . . Feedback Blocked . | . . . . . . . . . . . . . . . . . . . . . . . . . . . . . . Robot Schematics Acquired 5 | . 1 . . . . . . . . . . . . . . 1 . . . . . . . . . . . 3 . Robots Built 5 | . . . . . . . . . . . . . . . . . . . . . 1 . 4 . . . . . . Authchips 1 | . . . . . . . . . . . . . . . . . . . . . 1 . . . . . . . . Time 227 | . . . . . . . . . . . . . . . . . . . . . 27 . 200 . . . . . . Total Robot Build Rating 17 | . . . . . . . . . . . . . . . . . . . . . 1 . 16 . . . . . . Part Schematics Acquired 5 | . 1 . . . . . . . . . . . . . . . . . . . . . . . . . . 4 . Parts Built . | . . . . . . . . . . . . . . . . . . . . . . . . . . . . . . Authchips . | . . . . . . . . . . . . . . . . . . . . . . . . . . . . . . Time . | . . . . . . . . . . . . . . . . . . . . . . . . . . . . . . Total Part Build Rating . | . . . . . . . . . . . . . . . . . . . . . . . . . . . . . . Parts Repaired 7 | . 1 . . . . . 1 . . . . . . . 1 . . . . . . . 2 . 1 . . 1 . Time 404 | . 26 . . . . . 76 . . . . . . . 68 . . . . . . . 176 . 34 . . 24 . Parts Recycled . | . . . . . . . . . . . . . . . . . . . . . . . . . . . . . . Recycled Matter . | . . . . . . . . . . . . . . . . . . . . . . . . . . . . . . Retrieved Matter . | . . . . . . . . . . . . . . . . . . . . . . . . . . . . . . Retrieved Components . | . . . . . . . . . . . . . . . . . . . . . . . . . . . . . . Parts Scanalyzed . | . . . . . . . . . . . . . . . . . . . . . . . . . . . . . . Part Schematics Acquired . | . . . . . . . . . . . . . . . . . . . . . . . . . . . . . . Parts Damaged . | . . . . . . . . . . . . . . . . . . . . . . . . . . . . . . Bothacking | -11 -10 -10 -10 -9 -8 -8 -8 -8 -7 -7 -7 -7 -6 -6 -6 -6 -6 -6 -6 -6 -5 -5 -4 -4 -3 -3 -3 -3 -3 ------------ Run | Yrd Mat Min Exi Min Mat Gar Mat Gar Fac Was Fac Gar Fac Gar Fac Ext Cet Arc Hub Gar Fac Gar Fac Gar Res Gar Res Qua Frg Used RIF Installer 12 | . . . . . . 2 . 2 . . . 1 . 2 . . . . . 1 . 1 . 2 . 1 . . . Code Merge 1 | . . . . . . . . . . . . . . . . . . . . . . . . 1 . . . . . Threat Obfuscator 1 | . . . . . . . . 1 . . . . . . . . . . . . . . . . . . . . . Signal Jammer 1 | . . . . . . . . . . . . . . . . . . . . . . . . . . 1 . . . Zone Cloak 1 | . . . . . . . . . . . . . . 1 . . . . . . . . . . . . . . . Robot Detection 1 | . . . . . . . . . . . . . . . . . . . . 1 . . . . . . . . . Watcher Feeds 1 | . . . . . . . . . . . . . . . . . . . . . . 1 . . . . . . . Patrol Navigation 1 | . . . . . . 1 . . . . . . . . . . . . . . . . . . . . . . . Program Shield 1 | . . . . . . . . . . . . . . 1 . . . . . . . . . . . . . . . Autooverride 1 | . . . . . . . . . . . . . . . . . . . . . . . . 1 . . . . . Autoassimilate 2 | . . . . . . . . 1 . . . 1 . . . . . . . . . . . . . . . . . Robots Hacked 174 | . . . . . . . 2 4 2 6 . . 12 9 4 1 . . 11 4 9 22 14 7 10 9 4 17 27 Non-combat 28 | . . . . . . . 2 . 2 . . . 4 . 2 . . . . . 2 . 4 . 3 . 3 3 3 Combat 146 | . . . . . . . . 4 . 6 . . 8 9 2 1 . . 11 4 7 22 10 7 7 9 1 14 24 Autooverrided 3 | . . . . . . . . . . . . . . . . . . . . . . . . . 1 . . 1 1 Autoassimilated 49 | . . . . . . . . . . . . . 4 4 . 1 . . 3 1 3 10 2 3 . 5 . 2 11 Robot Hacks Applied 140 | . . . . . . . 2 4 2 6 . . 10 5 4 . . . 8 3 8 12 14 4 12 5 8 17 16 parse_system 8 | . . . . . . . . . . . . . . 1 . . . . 1 . . 1 1 . 1 1 . . 2 find_chute 4 | . . . . . . . . . 1 . . . 2 . . . . . . . . . 1 . . . . . . find_fabricator 1 | . . . . . . . . . . . . . . . . . . . . . 1 . . . . . . . . drop_inventory 4 | . . . . . . . . . . . . . . . 2 . . . . . . . 1 . . . 1 . . purge_threat 14 | . . . . . . . 1 . . . . . 3 . . . . . . . 1 . 1 . 2 . 3 2 1 block_reporting 5 | . . . . . . . . . 1 . . . . . . . . . . . . . 1 . . . 1 2 . disable_scanner 8 | . . . . . . . . . . . . . . . . . . . . . . . . . . . . 8 . ignore_targets 6 | . . . . . . . . . . 6 . . . . . . . . . . . . . . . . . . . find_garrison 2 | . . . . . . . . . . . . . 1 . . . . . . . . . . . 1 . . . . amplify_resonance 25 | . . . . . . . . 2 . . . . . . . . . . 3 . 2 4 4 1 2 2 . 1 4 reboot_system 1 | . . . . . . . . . . . . . . . . . . . . . 1 . . . . . . . . overwrite_iff 18 | . . . . . . . . 2 . . . . . . 1 . . . . 2 2 1 1 . 3 1 . 1 4 formatsys_low 14 | . . . . . . . 1 . . . . . 1 . . . . . . . 1 . 2 . 2 . 2 2 3 formatsys_high 30 | . . . . . . . . . . . . . 3 4 1 . . . 4 1 . 6 2 3 1 1 1 1 2 Relay Couplers Released 135 | . . . . . . 8 . 15 . . 3 18 . 11 1 . . . . 12 4 29 . 11 4 15 1 3 . Ejected 11 | . . . . . . . . . . . 3 . . . . . . . . . 4 . . . 4 . . . . Machine Destruction 121 | . . . . . . 8 . 15 . . . 18 . 11 1 . . . . 12 . 29 . 11 . 15 1 . . Programmers 3 | . . . . . . . . . . . . . . . . . . . . . . . . . . . . 3 . Attached 52 | . . . . . . . 1 3 . . . 1 5 2 . . 2 . 2 1 2 8 3 1 4 3 2 8 4 Merged Code Value 29 | . . . . . . . . . . . . . . . . . . . . . . . . 9 . 13 . 7 . Fabnet Peak Effective % . | . . . . . . . . . . . . . . . . . . . . . . . . . . . . . . Robots Rewired 41 | . . . . . . . . 3 . . . 3 . . . 14 . . . 12 . 8 . . . . 1 . . Allies Hacked 6 | . . . . . . . . . . . . . . . . . . . . . 2 1 2 . . 1 . . . Hacks Repelled . | . . . . . . . . . . . . . . . . . . . . . . . . . . . . . . Allies | -11 -10 -10 -10 -9 -8 -8 -8 -8 -7 -7 -7 -7 -6 -6 -6 -6 -6 -6 -6 -6 -5 -5 -4 -4 -3 -3 -3 -3 -3 -------- Run | Yrd Mat Min Exi Min Mat Gar Mat Gar Fac Was Fac Gar Fac Gar Fac Ext Cet Arc Hub Gar Fac Gar Fac Gar Res Gar Res Qua Frg Total Allies 198 | . . . . 3 . . 2 5 . 19 . 3 8 8 2 24 5 . 7 16 6 25 12 6 7 7 4 8 21 Largest Group 20 | . . . . 3 3 . 2 4 4 20 18 15 6 6 1 17 17 10 10 12 7 13 13 12 4 7 1 4 8 Highest-Rated Group 1030 | . . . . 40 40 . 24 73 73 496 426 364 175 182 32 632 793 606 606 392 223 550 584 575 180 312 64 389 1030 Highest-Rated Ally 344 | . . . . 16 16 . 14 21 21 35 31 31 47 47 32 159 159 96 96 43 47 49 93 93 64 64 64 344 344 Total Orders 53 | . . . . . . . 11 3 . . . . . 3 . . 2 2 . . 3 2 1 2 1 4 2 2 15 STAY 22 | . . . . . . . 5 1 . . . . . 2 . . . 1 . . 1 1 . 1 . 1 1 1 7 ROAM 2 | . . . . . . . . . . . . . . . . . 1 . . . . . . . . . . . 1 FOLLOW 15 | . . . . . . . 1 1 . . . . . 1 . . 1 1 . . 1 1 . 1 . 1 . 1 5 AID 14 | . . . . . . . 5 1 . . . . . . . . . . . . 1 . 1 . 1 2 1 . 2 Ally Attacks 1584 | . . . . . 37 . . 14 16 98 26 192 69 50 10 170 61 12 150 68 43 148 52 70 24 68 10 42 154 Total Damage 42270 | . . . . . 387 . . 265 393 2333 403 2831 1538 1065 164 3016 1618 465 4397 2302 1201 4000 1512 2440 890 2264 428 1298 7060 Kills 289 | . . . . . 8 . . 6 2 3 5 32 13 13 1 19 7 3 34 22 8 28 13 16 3 11 2 6 34 Allies Corrupted 14 | . . . . . . . . . . . . . . 1 1 . . . 4 . . 1 4 . . 2 . . 1 Allies Melted 6 | . . . . . . . . . . . . 1 . . . . . . . 1 . . . . . 1 . 1 2 Intel | -11 -10 -10 -10 -9 -8 -8 -8 -8 -7 -7 -7 -7 -6 -6 -6 -6 -6 -6 -6 -6 -5 -5 -4 -4 -3 -3 -3 -3 -3 ------- Run | Yrd Mat Min Exi Min Mat Gar Mat Gar Fac Was Fac Gar Fac Gar Fac Ext Cet Arc Hub Gar Fac Gar Fac Gar Res Gar Res Qua Frg Active Infowar (turns) 6747 | . . . . . . . . . . . . . . . 1644 2668 604 404 251 . 259 79 . . . 534 302 . 2 Optics 5571 | . . . . . . . . . . . . . . . 1644 2668 604 404 251 . . . . . . . . . . Jamming 1176 | . . . . . . . . . . . . . . . . . . . . . 259 79 . . . 534 302 . 2 Robot Analysis Total 4 | . 2 . . . 2 . . . . . . . . . . . . . . . . . . . . . . . . Derelict Logs Recovered 1 | . . 1 . . . . . . . . . . . . . . . . . . . . . . . . . . . Drone Launches . | . . . . . . . . . . . . . . . . . . . . . . . . . . . . . . Drone Recoveries . | . . . . . . . . . . . . . . . . . . . . . . . . . . . . . . Exploration | -11 -10 -10 -10 -9 -8 -8 -8 -8 -7 -7 -7 -7 -6 -6 -6 -6 -6 -6 -6 -6 -5 -5 -4 -4 -3 -3 -3 -3 -3 ------------- Run | Yrd Mat Min Exi Min Mat Gar Mat Gar Fac Was Fac Gar Fac Gar Fac Ext Cet Arc Hub Gar Fac Gar Fac Gar Res Gar Res Qua Frg Turns Passed 39784 | 65 1550 1020 646 1171 2655 590 2514 2058 519 731 230 1287 1050 2126 1819 2668 604 404 2512 980 1225 1743 1397 737 836 1026 1425 1750 2446 Spaces Moved 17241 | 38 652 546 306 468 903 270 1207 828 207 320 131 625 590 759 551 802 171 101 955 510 668 854 685 289 418 506 615 942 1324 Core 51 | 3 . . . . . . . . . . . . . . . . . . . . . . . . . . . . 48 Treads 17036 | 35 652 546 306 468 749 270 1207 828 207 320 131 625 590 759 551 802 171 101 955 510 668 854 685 289 418 506 615 942 1276 Legs . | . . . . . . . . . . . . . . . . . . . . . . . . . . . . . . Wheels 154 | . . . . . 154 . . . . . . . . . . . . . . . . . . . . . . . . Hover . | . . . . . . . . . . . . . . . . . . . . . . . . . . . . . . Flight . | . . . . . . . . . . . . . . . . . . . . . . . . . . . . . . Fastest Speed 50 | 50 160 160 160 240 145 155 150 150 236 160 160 160 160 160 245 245 160 160 160 160 160 155 155 155 155 155 155 161 50 Average Speed 183 | 151 175 160 210 240 188 155 154 203 236 191 160 160 160 235 253 245 221 190 221 160 160 159 155 217 155 155 162 161 158 Slowest Speed 360 | 160 240 160 240 240 240 155 155 235 236 240 160 160 160 260 260 245 245 240 240 160 160 160 155 238 155 155 238 161 360 Overloaded Moves . | . . . . . . . . . . . . . . . . . . . . . . . . . . . . . . Propulsion Burnouts . | . . . . . . . . . . . . . . . . . . . . . . . . . . . . . . Robots Hopped . | . . . . . . . . . . . . . . . . . . . . . . . . . . . . . . Potential Cave-ins . | . . . . . . . . . . . . . . . . . . . . . . . . . . . . . . Cave-ins Triggered . | . . . . . . . . . . . . . . . . . . . . . . . . . . . . . . Exploration Rate (%) 59 | 4 99 97 70 96 61 37 89 86 8 87 5 85 20 98 15 84 60 85 70 94 18 85 27 48 14 76 25 91 42 Regions Visited 29 Branch Regions 9 Pre-discovered Areas 13 | . 3 1 1 . 3 . 3 . . . . . . . 2 . . . . . . . . . . . . . . Known Exits Taken 11 | . . 1 . 1 1 . 1 . . . 1 . 1 . . . . . 1 . 1 . 1 . 1 . 1 . . Unknown Exits Taken 8 | 1 1 . 1 . . . . . . . . . . . 1 1 1 1 . . . . . . . . . 1 . Scrap Searched 2 | . . 1 . 1 . . . . . . . . . . . . . . . . . . . . . . . . . Spaces Dug 69 | . . . . . 11 . . 13 1 . 3 2 . . 3 . . . 1 . . 1 5 . 1 2 11 7 8 Terrain Destroyed 563 | . 18 . . 13 21 . 6 54 1 . 3 2 . 11 17 38 5 3 206 . 10 4 9 4 3 16 56 39 24 Melee 18 | . . . . . 11 . . 1 1 . 3 2 . . . . . . . . . . . . . . . . . Projectile 224 | . . . . . . . . . . . . . . 11 17 38 5 3 33 . 10 4 9 4 3 16 23 24 24 AOE 321 | . 18 . . 13 10 . 6 53 . . . . . . . . . . 173 . . . . . . . 33 15 . Terrain Rammed . | . . . . . . . . . . . . . . . . . . . . . . . . . . . . . . Walls Destroyed . | . . . . . . . . . . . . . . . . . . . . . . . . . . . . . . Machines Disabled . | . . . . . . . . . . . . . . . . . . . . . . . . . . . . . . Actions | -11 -10 -10 -10 -9 -8 -8 -8 -8 -7 -7 -7 -7 -6 -6 -6 -6 -6 -6 -6 -6 -5 -5 -4 -4 -3 -3 -3 -3 -3 --------- Run | Yrd Mat Min Exi Min Mat Gar Mat Gar Fac Was Fac Gar Fac Gar Fac Ext Cet Arc Hub Gar Fac Gar Fac Gar Res Gar Res Qua Frg Total 23625 | 43 900 628 308 493 1768 404 1678 1053 232 402 149 818 658 945 905 1393 378 295 1236 617 785 1138 986 362 561 653 1025 1167 1645 Wait 3655 | . 145 38 . 2 729 100 290 43 . 22 10 66 21 51 289 353 161 170 187 24 40 102 244 21 69 15 262 52 149 Move 17218 | 37 651 545 305 467 903 269 1207 827 207 319 131 624 590 758 550 801 170 100 954 509 667 853 685 288 417 505 614 941 1324 Hop . | . . . . . . . . . . . . . . . . . . . . . . . . . . . . . . Pick Up 199 | . 10 3 2 7 14 4 11 15 5 6 2 9 4 14 6 5 7 1 3 5 8 17 2 6 7 15 2 4 5 Fast Attach 84 | 6 4 1 . . 7 . 3 3 1 2 . 6 . 7 1 . 6 2 3 6 4 5 2 1 1 4 7 2 . Attach 90 | . 1 2 . 1 4 . 1 8 2 . . 3 4 7 1 3 2 1 3 . 5 6 5 3 6 3 2 9 8 Detach 41 | . 1 . . . 2 . . 2 1 1 . 4 . 1 . . 2 2 3 . 1 2 . 3 3 2 3 6 2 Swap 287 | . 2 1 1 3 20 2 16 25 3 6 1 4 11 8 14 2 6 3 10 4 12 29 4 5 14 17 26 15 23 Drop 182 | . 2 1 . . 22 4 19 4 5 13 2 11 1 13 4 1 12 1 2 6 6 15 . 1 3 18 11 3 2 Fire 1455 | . 74 32 . 11 47 25 118 101 7 31 . 12 26 82 37 56 12 15 65 62 40 77 36 30 39 74 96 127 123 Melee 100 | . . . . . 13 . . 18 1 2 3 56 . 3 . . . . . . . . . . . . . . 4 Ram . | . . . . . . . . . . . . . . . . . . . . . . . . . . . . . . Kick . | . . . . . . . . . . . . . . . . . . . . . . . . . . . . . . Crush 70 | . 10 5 . 2 3 . 12 1 . . . . . 1 3 5 . . 3 . 1 5 7 . 1 . 2 7 2 Escape Stasis 21 | . . . . . . . . 6 . . . 5 . . . 4 . . . . . . . 4 . . . . 2 Rewire 219 | . . . . . . . 1 . . . . 18 1 . . 163 . . 3 1 1 27 1 . 1 . . 1 1 Trap 4 | . . . . . 4 . . . . . . . . . . . . . . . . . . . . . . . . Miscellaneous . | . . . . . . . . . . . . . . . . . . . . . . . . . . . . . . Route ------- -11/Scrapyard -10/Materials (discovered 6 exits: *Mat x3 / [*Min x2] / Sub) -10/Mines (discovered 4 exits: *Mat x2 / *Exi / Sub) -10/Exiles -9/Mines (discovered 2 exits: *Mat x2) -8/Materials (discovered 4 exits: *Fac x3 / Gar) -8/Garrison -8/Materials (discovered 4 exits: *Fac x3 / Gar) -8/Garrison (discovered 3 exits: *Fac x3) -7/Factory (discovered 4 exits: Fac / Sto x2 / Low) -7/Waste -7/Factory -7/Garrison (discovered 3 exits: *Fac x3) -6/Factory (discovered 2 exits: *Fac / Gar) -6/Garrison (discovered 3 exits: *Fac x3) -6/Factory (discovered 3 exits: *Fac / *Low / *Ext) -6/Extension (discovered 2 exits: *Fac / *Cet) -6/Cetus (discovered 2 exits: *Fac / [*Arc]) -6/Archives (discovered 3 exits: *Fac / *Hub x2) -6/Hub_04(d) (discovered 4 exits: *Fac x2 / Gar / Gar) -6/Garrison (discovered 3 exits: *Fac x3) -5/Factory -5/Garrison (discovered 3 exits: *Fac x3) -4/Factory (discovered 4 exits: *Upp x2 / Arm / Gar) -4/Garrison -3/Research (discovered 2 exits: *Res / Gar) -3/Garrison (discovered 3 exits: *Res x3) -3/Research (discovered 2 exits: *Qua x2) -3/Quarantine (discovered 3 exits: *Res / [*Sec] / *Frg) -3/Protoforge (discovered 1 exit: *Res) History --------- Turn | Location | Event 9 | -11/Scrapyard | Discovered new exit (range 16) 66 | -11/Scrapyard | Entered Materials 244 | -10/Materials | Discovered new exit (range 6) 310 | -10/Materials | Build established: Mutant 558 | -10/Materials | Discovered new exit (range 16) 666 | -10/Materials | Repaired Lgt. Treads 885 | -10/Materials | Discovered new exit (range 16) 1189 | -10/Materials | Learned location of 2 exits from Mines 1220 | -10/Materials | Discovered new exit (range 11) 1261 | -10/Materials | Learned location of 2 exits from Mines 1321 | -10/Materials | Learned location of Storage (-7) 1362 | -10/Materials | Discovered new exit (range 15) 1373 | -10/Materials | Identified exit to Materials 1417 | -10/Materials | Learned Storage emergency access door positions 1449 | -10/Materials | Identified exit to Subcaves 1616 | -10/Materials | Entered Mines 1618 | -10/Mines | Identified exit to Exiles 1624 | -10/Mines | Met a Derelict bent on vengeance 2040 | -10/Mines | Received a Rocket Launcher from a helpful Derelict 2630 | -10/Mines | Deemed a non-threat by the Exiles lab entrance 2636 | -10/Mines | Entered Exiles 2673 | -10/Exiles | Met 8R-AWN 2704 | -10/Exiles | Met EX-HEX 2745 | -10/Exiles | Met EX-BIN 2766 | -10/Exiles | Aligned with FarCom system 2768 | -10/Exiles | Given EX-Vault access code 2808 | -10/Exiles | Opened EX-Vault 2820 | -10/Exiles | Found AWS/Thermal 2823 | -10/Exiles | Found Chronowheel 2870 | -10/Exiles | Warned to stay clear of 0b10 Research branches 2939 | -10/Exiles | Met EX-DEC 2949 | -10/Exiles | Learned location of Zion (-6) 3261 | -10/Exiles | Discovered new exit (range 10) 3282 | -10/Exiles | Stole two prototypes: Chronowheel, AWS/Thermal 3282 | -10/Exiles | Entered Mines 3283 | -9/Mines | Identified exit to Materials 3297 | -9/Mines | Joined a pair of Derelicts in attacking an 0b10 outpost 3470 | -9/Mines | Discovered exit to Materials (range 12) 3939 | -9/Mines | Assisted by bots powering up and referring to "LRC-V3" 4251 | -9/Mines | Found a hidden stash of uninstalled traps 4453 | -9/Mines | Entered Materials 4453 | -8/Materials | Accompanied by 3 allies 4453 | -8/Materials | Evolved 4 slots: Propulsion x1, Utility x3 4606 | -8/Materials | Garrison activated, responded to threat 5161 | -8/Materials | Lost 3 allies 5216 | -8/Materials | Discovered new exit (range 16) 6170 | -8/Materials | Discovered new exit (range 4) 6608 | -8/Materials | Learned 4 Recycling zone layouts 6686 | -8/Materials | Learned location of 2 exits from Factory 6753 | -8/Materials | Learned location of 1 exit from Lower Caves 6859 | -8/Materials | Identified exit to Factory 6923 | -8/Materials | Learned Storage stockpile data 6958 | -8/Materials | Learned Storage trap positions 7034 | -8/Materials | Garrison activated, responded to threat 7108 | -8/Materials | Identified exit to Garrison 7108 | -8/Materials | Entered Garrison 7237 | -8/Garrison | Triggered checkpoint 7265 | -8/Garrison | Garrison Relay disabled 7335 | -8/Garrison | Installed Relay Interface Framework 7368 | -8/Garrison | Triggered checkpoint 7414 | -8/Garrison | Triggered checkpoint 7554 | -8/Garrison | Expanded RIF knowledge: Patrol Navigation 7598 | -8/Garrison | Garrison Relay disabled 7663 | -8/Garrison | Discovered new exit (range 8) 7698 | -8/Garrison | Entered Materials 8373 | -8/Materials | Learned location of Lower Caves (-6) 8470 | -8/Materials | Learned location of Lower Caves (-6) 8504 | -8/Materials | Learned location of 1 exit from Recycling 8539 | -8/Materials | Learned Factory stockpile data 8561 | -8/Materials | Learned 4 Factory zone layouts 8594 | -8/Materials | Learned 2 Lower Caves zone layouts 8638 | -8/Materials | Learned location of 1 exit from Storage 9539 | -8/Materials | Discovered exit to Factory (range 16) 9795 | -8/Materials | Repaired Broken Enh. Autogun 10210 | -8/Materials | Identified exit to Garrison 10212 | -8/Materials | Entered Garrison 10212 | -8/Garrison | Accompanied by 2 allies 10236 | -8/Garrison | Activated Chronowheel 10247 | -8/Garrison | Expanded RIF knowledge: Threat Obfuscation 10288 | -8/Garrison | Triggered checkpoint 10390 | -8/Garrison | Expanded RIF knowledge: Autoassimilate 10407 | -8/Garrison | Garrison Relay disabled 10538 | -8/Garrison | Garrison Relay disabled 10640 | -8/Garrison | Triggered checkpoint 10716 | -8/Garrison | Build established: Bothacker-Mutant 10773 | -8/Garrison | Triggered checkpoint 10810 | -8/Garrison | Triggered checkpoint 10876 | -8/Garrison | Triggered checkpoint 11115 | -8/Garrison | Garrison Relay disabled 11172 | -8/Garrison | Discovered exit to Factory (range 15) 11457 | -8/Garrison | Discovered exit to Factory (range 3) 11481 | -8/Garrison | Core integrity fell below 50% 11976 | -8/Garrison | Garrison Relay disabled 12185 | -8/Garrison | Learned Factory security intel 12214 | -8/Garrison | Discovered exit to Factory (range 60) 12214 | -8/Garrison | Discovered exit to Factory (range 16) 12214 | -8/Garrison | Discovered exit to Factory (range 80) 12270 | -8/Garrison | Entered Factory 12270 | -7/Factory | Accompanied by 4 allies 12270 | -7/Factory | Evolved 2 slots: Propulsion x1, Utility x1 12271 | -7/Factory | Identified exit to Storage 12272 | -7/Factory | Identified exit to Factory 12272 | -7/Factory | Identified exit to Lower Caves 12272 | -7/Factory | FarCom data flow suspended 12789 | -7/Factory | Sucked down chute 12789 | -7/Factory | Entered Waste 12857 | -7/Waste | Spotted C-40 Crusher 12859 | -7/Waste | 4 allies followed down the chute 12864 | -7/Waste | Spotted C-40 Crusher 12888 | -7/Waste | Spotted C-40 Crusher 12921 | -7/Waste | Spotted C-40 Crusher 12930 | -7/Waste | Spotted C-40 Crusher 12930 | -7/Waste | Allies destroyed C-40 Crusher 12933 | -7/Waste | Spotted C-40 Crusher 13017 | -7/Waste | Destroyed C-40 Crusher 13028 | -7/Waste | Lost 3 allies 13128 | -7/Waste | Destroyed C-40 Crusher 13156 | -7/Waste | Destroyed C-40 Crusher 13230 | -7/Waste | Discovered new exit (range 13) 13373 | -7/Waste | Warlord forces began an assault 13520 | -7/Waste | Entered Factory 13520 | -7/Factory | Accompanied by 18 allies 13574 | -7/Factory | Garrison activated, responded to threat 13750 | -7/Factory | Identified exit to Garrison 13750 | -7/Factory | Entered Garrison 13750 | -7/Garrison | Accompanied by 15 allies 13778 | -7/Garrison | Triggered checkpoint 13783 | -7/Garrison | Garrison Relay disabled 13922 | -7/Garrison | Triggered checkpoint 13981 | -7/Garrison | Lost 8 allies 13981 | -7/Garrison | Triggered checkpoint 13997 | -7/Garrison | Triggered checkpoint 14078 | -7/Garrison | Triggered checkpoint 14178 | -7/Garrison | Garrison Relay disabled 14254 | -7/Garrison | Triggered checkpoint 14270 | -7/Garrison | Discovered exit to Factory (range 13) 14472 | -7/Garrison | P-60 Hacker assimilated allied 1T-7BM(l) 14501 | -7/Garrison | Garrison Relay disabled 14501 | -7/Garrison | Garrison Relay disabled 14572 | -7/Garrison | Triggered checkpoint 14664 | -7/Garrison | Expanded RIF knowledge: Autoassimilate 14679 | -7/Garrison | Discovered exit to Factory (range 10) 14780 | -7/Garrison | Triggered checkpoint 14796 | -7/Garrison | Build established: Botlord-Mutant 14823 | -7/Garrison | Discovered exit to Factory (range 71) 14823 | -7/Garrison | Discovered exit to Factory (range 58) 14823 | -7/Garrison | Discovered exit to Factory (range 23) 15037 | -7/Garrison | Entered Factory 15037 | -6/Factory | Accompanied by 5 allies 15037 | -6/Factory | Evolved 2 slots: Power x1, Utility x1 15120 | -6/Factory | Garrison activated, responded to threat 15130 | -6/Factory | Discovered new exit (range 15) 15684 | -6/Factory | Lost 4 allies 16087 | -6/Factory | Identified exit to Garrison 16087 | -6/Factory | Entered Garrison 16087 | -6/Garrison | Accompanied by 5 allies 16207 | -6/Garrison | Spotted Executioner 16232 | -6/Garrison | Spotted Executioner 16256 | -6/Garrison | Phase Generator disabled 16258 | -6/Garrison | Destroyed Executioner 16267 | -6/Garrison | Lost 5 allies 16293 | -6/Garrison | Destroyed Executioner 16340 | -6/Garrison | Found Exp. Targeting Computer 16541 | -6/Garrison | Triggered checkpoint 16656 | -6/Garrison | AWS/Thermal suddenly broke down 16751 | -6/Garrison | Triggered checkpoint 16802 | -6/Garrison | Triggered checkpoint 16924 | -6/Garrison | Found Relay Coupler [Proto] 16933 | -6/Garrison | Found Relay Coupler [Proto] 16974 | -6/Garrison | Garrison Relay disabled 17017 | -6/Garrison | Spotted B-75 Beast 17019 | -6/Garrison | Discovered new exit (range 15) 17045 | -6/Garrison | Destroyed B-75 Beast 17349 | -6/Garrison | Triggered checkpoint 17401 | -6/Garrison | Discovered new exit (range 14) 17473 | -6/Garrison | Triggered checkpoint 17512 | -6/Garrison | Rescued a captive Derelict 17517 | -6/Garrison | Rescued a captive Derelict 17568 | -6/Garrison | Lost 3 allies 17735 | -6/Garrison | Found Hvy. Reactive Plating 17945 | -6/Garrison | Triggered checkpoint 18003 | -6/Garrison | Garrison Relay disabled 18056 | -6/Garrison | Expanded RIF knowledge: Program Shield 18154 | -6/Garrison | Discovered new exit (range 10) 18196 | -6/Garrison | Expanded RIF knowledge: Zone Cloak 18213 | -6/Garrison | Entered Factory 18213 | -6/Factory | Accompanied by 1 ally 18499 | -6/Factory | Discovered new exit (range 22) 18633 | -6/Factory | Identified exit to Lower Caves 18850 | -6/Factory | Discovered new exit (range 6) 19356 | -6/Factory | Repaired Imp. Heavy Siege Treads? 19585 | -6/Factory | Discovered new exit (range 22) 20032 | -6/Factory | Entered Extension 20704 | -6/Extension | Rescued a captive Derelict 20707 | -6/Extension | Rescued a captive Derelict 20881 | -6/Extension | Rescued a captive Derelict 21042 | -6/Extension | Rescued a captive Derelict 21079 | -6/Extension | Rescued a captive Derelict 21584 | -6/Extension | Spotted B-75 Beast 21601 | -6/Extension | Allies destroyed B-75 Beast 21608 | -6/Extension | Spotted B-75 Beast 21643 | -6/Extension | Allies destroyed B-75 Beast 21677 | -6/Extension | Lost 3 allies 21783 | -6/Extension | Rescued a captive Derelict 22105 | -6/Extension | Rescued a captive Derelict 22257 | -6/Extension | Rescued A7 22333 | -6/Extension | Rescued a captive Derelict 22335 | -6/Extension | Rescued a captive Derelict 22393 | -6/Extension | Discovered new exit (range 10) 22395 | -6/Extension | Discovered new exit (range 6) 22700 | -6/Extension | Entered Cetus 22700 | -6/Cetus | Accompanied by 17 allies (A7) 22705 | -6/Cetus | Acquired a Cetus Manufacturing Module code from A7 22736 | -6/Cetus | Spotted Cetus Guard 22736 | -6/Cetus | Spotted Cetus Guard 22741 | -6/Cetus | Spotted Cetus Guard 22745 | -6/Cetus | Spotted Cetus Guard 22750 | -6/Cetus | Destroyed Cetus Guard 22750 | -6/Cetus | Destroyed Cetus Guard 22759 | -6/Cetus | Destroyed Cetus Guard 22762 | -6/Cetus | Allies destroyed Cetus Guard 22786 | -6/Cetus | Lost 9 allies 22929 | -6/Cetus | Started Cetus Manufacturing Module 22954 | -6/Cetus | Manufactured an Enhanced Grunt 22956 | -6/Cetus | Discovered new exit (range 21) 22979 | -6/Cetus | Manufactured an Enhanced Grunt 23004 | -6/Cetus | Manufactured an Enhanced Grunt 23029 | -6/Cetus | Manufactured an Enhanced Grunt 23054 | -6/Cetus | Manufactured an Enhanced Grunt 23115 | -6/Cetus | Spotted Cetus Guard 23115 | -6/Cetus | Spotted Cetus Guard 23116 | -6/Cetus | Spotted Cetus Guard 23119 | -6/Cetus | Spotted Cetus Guard 23130 | -6/Cetus | Allies destroyed Cetus Guard 23131 | -6/Cetus | Discovered new exit (range 21) 23134 | -6/Cetus | Allies destroyed Cetus Guard 23142 | -6/Cetus | Allies destroyed Cetus Guard 23149 | -6/Cetus | Destroyed Cetus Guard 23168 | -6/Cetus | Lost 3 allies 23195 | -6/Cetus | Met Revision 17 23230 | -6/Cetus | Extracted ID and sensor layout for unrecognized location from A7's data core 23304 | -6/Cetus | Entered Archives 23304 | -6/Archives | Accompanied by 10 allies 23349 | -6/Archives | Discovered new exit (range 22) 23367 | -6/Archives | Discovered new exit (range 21) 23377 | -6/Archives | Discovered new exit (range 20) 23394 | -6/Archives | System corruption reached 10% 23708 | -6/Archives | Entered Hub_04(d) 23708 | -6/Hub_04(d) | Accompanied by 10 allies 23763 | -6/Hub_04(d) | Spotted B-75 Beast 23768 | -6/Hub_04(d) | Garrison activated, responded to threat 23786 | -6/Hub_04(d) | Destroyed B-75 Beast 23846 | -6/Hub_04(d) | Lost 5 allies 24134 | -6/Hub_04(d) | Discovered new exit (range 16) 24416 | -6/Hub_04(d) | Garrison activated, responded to threat 24737 | -6/Hub_04(d) | Discovered new exit (range 4) 24740 | -6/Hub_04(d) | Garrison activated, responded to threat 24905 | -6/Hub_04(d) | Identified exit to Garrison 25401 | -6/Hub_04(d) | Identified exit to Garrison 25467 | -6/Hub_04(d) | Garrison activated, responded to threat 25681 | -6/Hub_04(d) | Core integrity fell below 50% 25975 | -6/Hub_04(d) | Network Hub disabled 26083 | -6/Hub_04(d) | Spotted Lightning 26084 | -6/Hub_04(d) | Network Hub disabled 26085 | -6/Hub_04(d) | Spotted Lightning 26086 | -6/Hub_04(d) | Spotted Lightning 26093 | -6/Hub_04(d) | Destroyed Lightning 26117 | -6/Hub_04(d) | Lost 4 allies 26138 | -6/Hub_04(d) | Destroyed Lightning 26144 | -6/Hub_04(d) | Destroyed Lightning 26162 | -6/Hub_04(d) | Found Prototype Device 26162 | -6/Hub_04(d) | Identified Exp. EM Shield 26167 | -6/Hub_04(d) | Found Exp. EM Shield 26170 | -6/Hub_04(d) | Found Exp. Targeting Computer 26183 | -6/Hub_04(d) | Found Prototype Energy Cannon 26220 | -6/Hub_04(d) | Entered Garrison 26342 | -6/Garrison | Destroyed 10 combat bots 26446 | -6/Garrison | Spotted B-75 Beast 26448 | -6/Garrison | Triggered checkpoint 26460 | -6/Garrison | Core integrity fell below 20% 26524 | -6/Garrison | Lost 9 allies 26594 | -6/Garrison | Triggered checkpoint 26600 | -6/Garrison | Discovered new exit (range 8) 26667 | -6/Garrison | Garrison Relay disabled 26848 | -6/Garrison | Garrison Relay disabled 26922 | -6/Garrison | Discovered new exit (range 15) 27012 | -6/Garrison | Triggered checkpoint 27063 | -6/Garrison | Triggered checkpoint 27096 | -6/Garrison | Expanded RIF knowledge: Robot Detection 27126 | -6/Garrison | Garrison Relay disabled 27165 | -6/Garrison | Discovered new exit (range 14) 27191 | -6/Garrison | Learned Factory security intel 27200 | -6/Garrison | Entered Factory 27200 | -5/Factory | Accompanied by 5 allies 27200 | -5/Factory | Evolved 2 slots: Propulsion x1, Utility x1 27500 | -5/Factory | First assault squad dispatched 28019 | -5/Factory | Lost 6 allies 28263 | -5/Factory | Fabricated M-13 Machinist (x1) 28416 | -5/Factory | Identified exit to Garrison 28425 | -5/Factory | Entered Garrison 28443 | -5/Garrison | Triggered checkpoint 28471 | -5/Garrison | Triggered checkpoint 28473 | -5/Garrison | Garrison Relay disabled 28686 | -5/Garrison | Triggered checkpoint 28745 | -5/Garrison | Garrison Relay disabled 28912 | -5/Garrison | Spotted B-75 Beast 28915 | -5/Garrison | Triggered checkpoint 28927 | -5/Garrison | Triggered checkpoint 28935 | -5/Garrison | Allies destroyed B-75 Beast 28981 | -5/Garrison | Triggered checkpoint 29095 | -5/Garrison | Garrison Relay disabled 29135 | -5/Garrison | Garrison Relay disabled 29151 | -5/Garrison | Garrison Relay disabled 29221 | -5/Garrison | Triggered checkpoint 29276 | -5/Garrison | Discovered new exit (range 10) 29411 | -5/Garrison | Triggered checkpoint 29490 | -5/Garrison | Expanded RIF knowledge: Watcher Feeds 29578 | -5/Garrison | Discovered new exit (range 62) 29578 | -5/Garrison | Discovered new exit (range 88) 29578 | -5/Garrison | Discovered new exit (range 15) 29805 | -5/Garrison | Triggered checkpoint 29911 | -5/Garrison | Spotted B-75 Beast 29932 | -5/Garrison | Allies destroyed B-75 Beast 30001 | -5/Garrison | Garrison Relay disabled 30003 | -5/Garrison | Lost 3 allies 30033 | -5/Garrison | Found Relay Coupler [Proto] 30036 | -5/Garrison | Found Relay Coupler [Proto] 30038 | -5/Garrison | Found Relay Coupler [Proto] 30168 | -5/Garrison | Entered Factory 30168 | -4/Factory | Accompanied by 12 allies 30168 | -4/Factory | Evolved 2 slots: Utility x2 30368 | -4/Factory | Repaired Adv. Force Field 30477 | -4/Factory | Repaired Centrium Medium Armor Plating 30604 | -4/Factory | Identified exit to Upper Caves 30604 | -4/Factory | Identified exit to Armory 30809 | -4/Factory | Lost 7 allies 30910 | -4/Factory | Fabricated A-27 Freighter (x1) 30979 | -4/Factory | Fabricated P-60 Hacker? 31075 | -4/Factory | Hacker 7b assimilated hostile G-67 Veteran 31198 | -4/Factory | Fabricated M-13 Machinist (x1) 31526 | -4/Factory | Found Quantum Capacitor 31563 | -4/Factory | Identified exit to Garrison 31565 | -4/Factory | Entered Garrison 31565 | -4/Garrison | Accompanied by 8 allies 31603 | -4/Garrison | Expanded RIF knowledge: Code Merge 31657 | -4/Garrison | Triggered checkpoint 31659 | -4/Garrison | Assembled breached garrison interior 31687 | -4/Garrison | Garrison Relay disabled 31846 | -4/Garrison | Garrison Relay disabled 32018 | -4/Garrison | Spotted B-86 Titan 32027 | -4/Garrison | Destroyed B-86 Titan 32066 | -4/Garrison | Lost 4 allies 32098 | -4/Garrison | Expanded RIF knowledge: Autooverride 32128 | -4/Garrison | Discovered new exit (range 12) 32198 | -4/Garrison | Garrison Relay disabled 32302 | -4/Garrison | Entered Research 32302 | -3/Research | Accompanied by 3 allies 32302 | -3/Research | Evolved 2 slots: Propulsion x1, Utility x1 32502 | -3/Research | Revision forces began assault on 0b10 32530 | -3/Research | Repaired Adv. Force Field 32571 | -3/Research | Discovered new exit (range 16) 32626 | -3/Research | Met up with Revision 17++ 32868 | -3/Research | Spotted B-86 Titan 32871 | -3/Research | Destroyed B-86 Titan 32985 | -3/Research | Identified exit to Research 33002 | -3/Research | Research terminal network offline 33118 | -3/Research | Identified exit to Garrison 33138 | -3/Research | Entered Garrison 33138 | -3/Garrison | Accompanied by 3 allies 33215 | -3/Garrison | Triggered checkpoint 33336 | -3/Garrison | Discovered new exit (range 36) 33336 | -3/Garrison | Discovered new exit (range 74) 33336 | -3/Garrison | Discovered new exit (range 61) 33342 | -3/Garrison | Garrison Relay disabled 33416 | -3/Garrison | Spotted B-86 Titan 33430 | -3/Garrison | Triggered checkpoint 33439 | -3/Garrison | Destroyed B-86 Titan 33454 | -3/Garrison | Triggered checkpoint 33486 | -3/Garrison | Triggered checkpoint 33487 | -3/Garrison | Lost 3 allies 33642 | -3/Garrison | Learned Research security intel 33661 | -3/Garrison | Triggered checkpoint 33693 | -3/Garrison | Garrison Relay disabled 34001 | -3/Garrison | Garrison Relay disabled 34017 | -3/Garrison | Triggered checkpoint 34057 | -3/Garrison | Expanded RIF knowledge: Signal Jamming 34096 | -3/Garrison | Garrison Relay disabled 34164 | -3/Garrison | Entered Research 34285 | -3/Research | Identified exit to Quarantine 34478 | -3/Research | Spotted B-86 Titan 34623 | -3/Research | P-80 Master assimilated allied Administrator 8b 34652 | -3/Research | Destroyed B-86 Titan 34761 | -3/Research | Found Prototype Hackware 34761 | -3/Research | Identified Exp. Hacking Suite 35589 | -3/Research | Entered Quarantine 35589 | -3/Quarantine | Accompanied by 1 ally 35795 | -3/Quarantine | Garrison activated, responded to threat 35975 | -3/Quarantine | Garrison activated, responded to threat 36207 | -3/Quarantine | Found Alien Artifact 36207 | -3/Quarantine | Identified Phase Redirector 36401 | -3/Quarantine | Discovered exit to Research (range 10) 36448 | -3/Quarantine | Found Dimensional Node Initializer 36456 | -3/Quarantine | Found Hpw. Transdimensional Reconstructor 36481 | -3/Quarantine | P-80 Master assimilated allied Analyst 8a 36671 | -3/Quarantine | Repaired Adv. Heavy Siege Treads 36969 | -3/Quarantine | Found Alien Artifact 37214 | -3/Quarantine | Spotted Fortress 37215 | -3/Quarantine | Autoassimilated Fortress with RIF 37327 | -3/Quarantine | Discovered new exit (range 6) 37327 | -3/Quarantine | Discovered new exit (range 6) 37339 | -3/Quarantine | Entered Protoforge 37339 | -3/Protoforge | Accompanied by 2 allies 37371 | -3/Protoforge | Superfortress began startup sequence 37423 | -3/Protoforge | Spotted B-86 Titan 37683 | -3/Protoforge | Spotted Hotshot 37684 | -3/Protoforge | Autoassimilated Hotshot with RIF 37685 | -3/Protoforge | Spotted Hotshot 37720 | -3/Protoforge | Spotted Hotshot 37726 | -3/Protoforge | Spotted Hotshot 37727 | -3/Protoforge | Autoassimilated Hotshot with RIF 37729 | -3/Protoforge | Destroyed Hotshot 37736 | -3/Protoforge | Allies destroyed Hotshot 37737 | -3/Protoforge | Spotted Hotshot 37738 | -3/Protoforge | Spotted Hotshot 37738 | -3/Protoforge | Spotted Hotshot 37739 | -3/Protoforge | Autoassimilated Hotshot with RIF 37739 | -3/Protoforge | Autoassimilated Hotshot with RIF 37740 | -3/Protoforge | Spotted Hotshot 37741 | -3/Protoforge | Autoassimilated Hotshot with RIF 37743 | -3/Protoforge | Allies destroyed Hotshot 37959 | -3/Protoforge | Spotted Hotshot 37959 | -3/Protoforge | Spotted Hotshot 37959 | -3/Protoforge | Spotted Hotshot 37959 | -3/Protoforge | Spotted Hotshot 37959 | -3/Protoforge | Spotted Hotshot 37960 | -3/Protoforge | Autoassimilated Hotshot with RIF 37960 | -3/Protoforge | Autoassimilated Hotshot with RIF 37960 | -3/Protoforge | Autoassimilated Hotshot with RIF 37972 | -3/Protoforge | Allies destroyed Hotshot 37987 | -3/Protoforge | Allies destroyed Hotshot 37990 | -3/Protoforge | Allies destroyed Hotshot 38018 | -3/Protoforge | Lost 4 allies 38032 | -3/Protoforge | Discovered exit to Research (range 7) 38316 | -3/Protoforge | Spotted Immortal 38318 | -3/Protoforge | Spotted Immortal 38319 | -3/Protoforge | Spotted Immortal 38320 | -3/Protoforge | Autoassimilated Immortal with RIF 38326 | -3/Protoforge | Assimilated Immortal with formatsys_high 38332 | -3/Protoforge | Allies destroyed Immortal 38451 | -3/Protoforge | Spotted Hotshot 38451 | -3/Protoforge | Spotted Hotshot 38451 | -3/Protoforge | Spotted Hotshot 38451 | -3/Protoforge | Spotted Hotshot 38452 | -3/Protoforge | Autoassimilated Hotshot with RIF 38465 | -3/Protoforge | Destroyed Hotshot 38465 | -3/Protoforge | Allies destroyed Hotshot 38475 | -3/Protoforge | Destroyed Hotshot 39650 | -3/Protoforge | Identified Subatomic Replicator 39663 | -3/Protoforge | Spotted Immortal 39681 | -3/Protoforge | System corruption reached 10% 39715 | -3/Protoforge | Lost 7 allies 39743 | -3/Protoforge | Spotted Decapitator 39743 | -3/Protoforge | Spotted Decapitator 39748 | -3/Protoforge | Spotted Decapitator 39749 | -3/Protoforge | Spotted Decapitator 39756 | -3/Protoforge | Core integrity fell below 50% 39767 | -3/Protoforge | Spotted Decapitator 39767 | -3/Protoforge | Spotted V573-y 39767 | -3/Protoforge | Spotted V349-u 39768 | -3/Protoforge | Spotted Striker 39768 | -3/Protoforge | Spotted Decapitator 39774 | -3/Protoforge | Core integrity fell below 20% 39785 | -3/Protoforge | Destroyed by V573-y with Enhanced Force Lance Last Messages --------------- 39761_ Penetrated by HV Slug. 39761_ HV Slug penetrates Reinforced Barrier. 39761_ Penetrated by HV Slug. 39761_ HV Slug penetrates Reinforced Barrier. 39761_ Penetrated by HV Slug. 39761_ Railslug penetrates Reinforced Barrier. 39762_ Knocked back. 39762_ Exp. Targeting Computer destroyed. 39766_ System corrupted: Energy discharge (-11). 39766_ Adv. Cooling System destroyed. 39768_ Knocked back. 39769_ Decapitator springs to life. 39779_ V349-u springs to life. 39780_ Knocked back. 39781_ Acquired 8 matter. 39782_ Knocked back. 39783_ Acquired 4 matter. 39783_ Graphene Brace destroyed. 39784_ SVAQBXYHTH4CR9:VQ=SXX,SIT:DK 39784_ Knocked back. Map ----- +----------------------------------------------------+ | ?????????????????????????????????????????????????? | | ?????????????????????????????????????????????????? | | ?????????????????????????????????????????????????? | | ?????????????????????????????????????????????????? | | ?????????????????????????????????????????????????? | | ?????????????????????????????????????????????????? | | ?????????????????????????????????????????????????? | | ?????????????????????????????????????????????????? | | ?????????????????????????????????????????????????? | | ????????????????????????????????????????l????????? | | ????????????????????#######?????????????l????????? | | ????????????????????"""""""""""??????????????????? | | ???????????????????? !! !!!"??????????????????? | | ??????????????###??? ! ! ???????????????????? | | ??????????????#"""###""""""""##??????????????????? | | ??????????????#" !# "#??????????????????? | | ??????????????#" # ""#??????????????????? | | ??????????????#"!!" """"#??????????l???????? | | ??????????????#" !" c""""#??????????????????? | | ??????????????#"! " ""#??????????????????? | | ??????????????#" !" "#??????????????????? | | ??????????????#" " "#??????????????????? | | ??????????????#"! " c ##??????????????????? | | ??????????????###"" c ""???????????????????? | | ???????????????# %V ""#??????????????????? | | ???????????????# K c@ V #??????????????????? | | ???????????????###++### ####+##?????????????????? | | ???????????????#" # #?? "#?????????????????? | | ???????????????#" # #"" "#?????????????????? | | ???????????????#" "% " ##??????????????????? | | ???????????????#" " " #??????????????????? | | ???????????????#" " " #??????????????????? | | ???????????????#" " " ##??????????????????? | | ???????????????#" " ""# # " "#?????????????????? | | ???????????????#"""#"?# #"""""#?????????????????? | | ???????????????#####??# #######?????????????????? | | ??????????????????????# m#???????????????????????? | | ??????????????????????# #???????????????????????? | | ??????????????????????# #???????????????????????? | | ??????????????????????# #???????????????????????? | | ??????????????????????# #???????????????????????? | | ??????????????????????# !#???????????????????????? | | ??????????????????????#l!#???????????????????????? | | ???????################/!#???????????????????????? | | ??????? =* !/]!##??????????????????????? | | ??????? /!=%=!!#??????????????????????? | | ??????? ]/!=!!!#??????????????????????? | | ?????????++######## =!#####??????????????????????? | | ??????????????????# /#??????????????????????????? | | ??????????????????# #??????????????????????????? | +----------------------------------------------------+ Best States ------------- Heat Dissipation 134 Energy Generation 49 Energy Capacity 1350 Matter Stores 300 Matter Capacity 300 Sight Range 22 Terrain Scan Density 10 Jamming Range 12 Armor Coverage 675 Resistance: KI 30 Resistance: TH 10 Resistance: EM 75 Evasion (%) 50 Targeting Accuracy 12 Recoil Reduction 6 Offensive Hacking 16 Relay Coupler Types 4 Relay Coupler Value 87 Authchip Count 1 Item Schematics ----------------- Huge Storage Unit | -10/Materials | Hacked Electron Diverter | -3/Quarantine | Archive Imp. KE Penetrator | -3/Quarantine | Archive Hvy. Wave Gun | -3/Quarantine | Archive Exp. Cooling System | -3/Quarantine | Archive Robot Schematics ------------------ M-13 Machinist | -10/Materials | Hacked P-60 Hacker | -6/Extension | Hacked T-07 Excavator | -3/Quarantine | Archive A-02 Transporter | -3/Quarantine | Archive Y-72 Warden | -3/Quarantine | Archive Fabricated ------------ M-13 Machinist | x1 | -5/Factory | Authchip A-27 Freighter | x1 | -4/Factory | Preloaded P-60 Hacker | x2 | -4/Factory M-13 Machinist | x1 | -4/Factory Repaired ---------- Lgt. Treads | 40% | -10/Materials Enh. Autogun | 50% | -8/Materials | Broken Imp. Heavy Siege Treads | 64% | -6/Factory Adv. Force Field | 17% | -4/Factory Centrium Medium Armor Plating | 48% | -4/Factory Adv. Force Field | 45% | -3/Research Adv. Heavy Siege Treads | 32% | -3/Quarantine Alien Tech Used ----------------- Phase Redirector Achievements -------------- None Challenges ------------ None Game ------ Seed BlastThermoelectricAutogun Manual? 0 Play Time 04:08:16 Cumulative 711.5 hours Start 2025.05.18 @ 18:20:28 End 2025.05.20 @ 11:36:07 Sessions 21 Manual Loads 0 Difficulty Rogue Special Mode None Game No. 373 Rogue 373 Adventurer 0 Explorer 0 Win Type - Total 58 Types 39/4/5/2/1/1/3/1/1/1 Lore% 92 Gallery% 84 Achievement% 91 Wizard Run 0 Options --------- Layout 0 ASCII 0 Keyboard 1 Movement Numpad Keybinds 0 Fullscreen 2 Font 18/SmallcapsGlow Map View 76x50 Zoom Use 0% Tactical HUD 1 Map Filters NONE Filters NONE Steam 1 RUN: 26bc1c23-a731-4909-8e04-7e1698137326